{"text_format":"1","workbook":"xlsx","n_sheets":11,"sheets":["الصفحة الرئيسية","تسجيل","عرض الغياب","الغائبين","تقرير غياب طالب","الطلاب","Database","إحصائية يومية","التقرير الشامل","Setting","Sheet4"],"not_rendered":{"charts":0,"images":7,"macros":1,"external_links":0,"defined_names":5,"comments":0,"pivot_tables":2},"unopened":[],"bounds":{"document_bytes":16777216,"sheet_cells":100000,"rows_first":2000,"rows_last":500,"rows_between":2000,"halvings":0,"cell_chars":16384,"cell_head_chars":4096},"cells_cut":0,"cells_raw":0,"read":"whole","date_system":"1900"}

{"sheet":"الصفحة الرئيسية","index":0,"n_rows":0,"n_cols":0,"rows_kept":0,"cut":false,"hidden":false,"merged":[]}

{"sheet":"تسجيل","index":1,"n_rows":34,"n_cols":13,"rows_kept":34,"cut":false,"hidden":false,"merged":[[1,7,1,8],[2,7,2,8]]}
[]
[null,null,null,"عدد الغياب",null,"الشعبة",null,"التاريخ"]
[null,null,null,{"$f":"COUNTIF($E$6:$E$50,\"غائب\")","v":0},null,"7\\2",null,{"$f":"TODAY()","v":"2023-12-15"},null,null,null,null,"حالة الحضور:"]
[null,null,null,null,null,null,null,null,null,null,null,null,"حاضر"]
[null,"#","اسم الطالب","الشعبة","حال الحضور","التاريخ",null,null,null,null,null,null,"غائب"]
[null,1,"محمد29","7\\2","حاضر","2023-12-15",null,null,null,null,null,null,"غ بعذر"]
[null,2,"محمد30","7\\2","حاضر","2023-12-15"]
[null,3,"محمد31","7\\2","حاضر","2023-12-15"]
[null,4,"محمد32","7\\2","حاضر","2023-12-15"]
[null,5,"محمد33","7\\2","حاضر","2023-12-15"]
[null,6,"محمد34","7\\2","حاضر","2023-12-15"]
[null,7,"محمد35","7\\2","حاضر","2023-12-15"]
[null,8,"محمد36","7\\2","حاضر","2023-12-15"]
[null,9,"محمد37","7\\2","حاضر","2023-12-15"]
[null,10,"محمد38","7\\2","حاضر","2023-12-15"]
[null,11,"محمد39","7\\2","حاضر","2023-12-15"]
[null,12,"محمد40","7\\2","حاضر","2023-12-15"]
[null,13,"محمد41","7\\2","حاضر","2023-12-15"]
[null,14,"محمد42","7\\2","حاضر","2023-12-15"]
[null,15,"محمد43","7\\2","حاضر","2023-12-15"]
[null,16,"محمد44","7\\2","حاضر","2023-12-15"]
[null,17,"محمد45","7\\2","حاضر","2023-12-15"]
[null,18,"محمد46","7\\2","حاضر","2023-12-15"]
[null,19,"محمد47","7\\2","حاضر","2023-12-15"]
[null,20,"محمد48","7\\2","حاضر","2023-12-15"]
[null,21,"محمد49","7\\2","حاضر","2023-12-15"]
[null,22,"محمد50","7\\2","حاضر","2023-12-15"]
[null,23,"محمد51","7\\2","حاضر","2023-12-15"]
[null,24,"محمد52","7\\2","حاضر","2023-12-15"]
[null,25,"محمد53","7\\2","حاضر","2023-12-15"]
[null,26,"محمد54","7\\2","حاضر","2023-12-15"]
[null,27,"محمد55","7\\2","حاضر","2023-12-15"]
[null,28,"محمد56","7\\2","حاضر","2023-12-15"]
[null,29,"محمد57","7\\2","حاضر","2023-12-15"]

{"sheet":"عرض الغياب","index":2,"n_rows":87,"n_cols":25,"rows_kept":87,"cut":false,"hidden":false,"merged":[]}
["اختر الشهر"]
["2023-10-01",null,{"$f":"IF(C3=\"\",\"\",TEXT(C3,\"ddd\"))","v":"الأحد"},{"$f":"IF(D3=\"\",\"\",TEXT(D3,\"ddd\"))","v":"الإثنين"},"الثلاثاء","الأربعاء","الخميس","الأحد","الإثنين","الثلاثاء","الأربعاء","الخميس","الأحد","الإثنين","الثلاثاء","الأربعاء","الخميس","الأحد","الإثنين","الثلاثاء","الأربعاء","الخميس","الأحد","الإثنين","الثلاثاء"]
["اسم الطالب","الصف","2023-10-01","2023-10-02","2023-10-03","2023-10-04","2023-10-05","2023-10-08","2023-10-09","2023-10-10","2023-10-11","2023-10-12","2023-10-15","2023-10-16","2023-10-17","2023-10-18","2023-10-19","2023-10-22","2023-10-23","2023-10-24","2023-10-25","2023-10-26","2023-10-29","2023-10-30","2023-10-31"]
[{"$f":"الطلاب!C7","v":"محمد1"},{"$f":"الطلاب!D7","v":"7\\1"},null,null,null,null,null,null,null,null,null,null,null,null,null,null,null,null,null,null,null,null,null,null,"غ"]
[{"$f":"الطلاب!C8","v":"محمد2"},{"$f":"الطلاب!D8","v":"7\\1"}]
[{"$f":"الطلاب!C9","v":"محمد3"},{"$f":"الطلاب!D9","v":"7\\1"}]
[{"$f":"الطلاب!C10","v":"محمد4"},{"$f":"الطلاب!D10","v":"7\\1"}]
[{"$f":"الطلاب!C11","v":"محمد5"},{"$f":"الطلاب!D11","v":"7\\1"}]
[{"$f":"الطلاب!C12","v":"محمد6"},{"$f":"الطلاب!D12","v":"7\\1"}]
[{"$f":"الطلاب!C13","v":"محمد7"},{"$f":"الطلاب!D13","v":"7\\1"}]
[{"$f":"الطلاب!C14","v":"محمد8"},{"$f":"الطلاب!D14","v":"7\\1"}]
[{"$f":"الطلاب!C15","v":"محمد9"},{"$f":"الطلاب!D15","v":"7\\1"}]
[{"$f":"الطلاب!C16","v":"محمد10"},{"$f":"الطلاب!D16","v":"7\\1"}]
[{"$f":"الطلاب!C17","v":"محمد11"},{"$f":"الطلاب!D17","v":"7\\1"}]
[{"$f":"الطلاب!C18","v":"محمد12"},{"$f":"الطلاب!D18","v":"7\\1"}]
[{"$f":"الطلاب!C19","v":"محمد13"},{"$f":"الطلاب!D19","v":"7\\1"}]
[{"$f":"الطلاب!C20","v":"محمد14"},{"$f":"الطلاب!D20","v":"7\\1"}]
[{"$f":"الطلاب!C21","v":"محمد15"},{"$f":"الطلاب!D21","v":"7\\1"}]
[{"$f":"الطلاب!C22","v":"محمد16"},{"$f":"الطلاب!D22","v":"7\\1"}]
[{"$f":"الطلاب!C23","v":"محمد17"},{"$f":"الطلاب!D23","v":"7\\1"}]
[{"$f":"الطلاب!C24","v":"محمد18"},{"$f":"الطلاب!D24","v":"7\\1"}]
[{"$f":"الطلاب!C25","v":"محمد19"},{"$f":"الطلاب!D25","v":"7\\1"}]
[{"$f":"الطلاب!C26","v":"محمد20"},{"$f":"الطلاب!D26","v":"7\\1"}]
[{"$f":"الطلاب!C27","v":"محمد21"},{"$f":"الطلاب!D27","v":"7\\1"}]
[{"$f":"الطلاب!C28","v":"محمد22"},{"$f":"الطلاب!D28","v":"7\\1"}]
[{"$f":"الطلاب!C29","v":"محمد23"},{"$f":"الطلاب!D29","v":"7\\1"}]
[{"$f":"الطلاب!C30","v":"محمد24"},{"$f":"الطلاب!D30","v":"7\\1"}]
[{"$f":"الطلاب!C31","v":"محمد25"},{"$f":"الطلاب!D31","v":"7\\1"}]
[{"$f":"الطلاب!C32","v":"محمد26"},{"$f":"الطلاب!D32","v":"7\\1"}]
[{"$f":"الطلاب!C33","v":"محمد27"},{"$f":"الطلاب!D33","v":"7\\1"}]
[{"$f":"الطلاب!C34","v":"محمد28"},{"$f":"الطلاب!D34","v":"7\\1"}]
[{"$f":"الطلاب!C35","v":"محمد29"},{"$f":"الطلاب!D35","v":"7\\2"}]
[{"$f":"الطلاب!C36","v":"محمد30"},{"$f":"الطلاب!D36","v":"7\\2"}]
[{"$f":"الطلاب!C37","v":"محمد31"},{"$f":"الطلاب!D37","v":"7\\2"}]
[{"$f":"الطلاب!C38","v":"محمد32"},{"$f":"الطلاب!D38","v":"7\\2"}]
[{"$f":"الطلاب!C39","v":"محمد33"},{"$f":"الطلاب!D39","v":"7\\2"}]
[{"$f":"الطلاب!C40","v":"محمد34"},{"$f":"الطلاب!D40","v":"7\\2"}]
[{"$f":"الطلاب!C41","v":"محمد35"},{"$f":"الطلاب!D41","v":"7\\2"}]
[{"$f":"الطلاب!C42","v":"محمد36"},{"$f":"الطلاب!D42","v":"7\\2"}]
[{"$f":"الطلاب!C43","v":"محمد37"},{"$f":"الطلاب!D43","v":"7\\2"}]
[{"$f":"الطلاب!C44","v":"محمد38"},{"$f":"الطلاب!D44","v":"7\\2"}]
[{"$f":"الطلاب!C45","v":"محمد39"},{"$f":"الطلاب!D45","v":"7\\2"}]
[{"$f":"الطلاب!C46","v":"محمد40"},{"$f":"الطلاب!D46","v":"7\\2"}]
[{"$f":"الطلاب!C47","v":"محمد41"},{"$f":"الطلاب!D47","v":"7\\2"}]
[{"$f":"الطلاب!C48","v":"محمد42"},{"$f":"الطلاب!D48","v":"7\\2"}]
[{"$f":"الطلاب!C49","v":"محمد43"},{"$f":"الطلاب!D49","v":"7\\2"}]
[{"$f":"الطلاب!C50","v":"محمد44"},{"$f":"الطلاب!D50","v":"7\\2"}]
[{"$f":"الطلاب!C51","v":"محمد45"},{"$f":"الطلاب!D51","v":"7\\2"}]
[{"$f":"الطلاب!C52","v":"محمد46"},{"$f":"الطلاب!D52","v":"7\\2"}]
[{"$f":"الطلاب!C53","v":"محمد47"},{"$f":"الطلاب!D53","v":"7\\2"}]
[{"$f":"الطلاب!C54","v":"محمد48"},{"$f":"الطلاب!D54","v":"7\\2"}]
[{"$f":"الطلاب!C55","v":"محمد49"},{"$f":"الطلاب!D55","v":"7\\2"}]
[{"$f":"الطلاب!C56","v":"محمد50"},{"$f":"الطلاب!D56","v":"7\\2"}]
[{"$f":"الطلاب!C57","v":"محمد51"},{"$f":"الطلاب!D57","v":"7\\2"}]
[{"$f":"الطلاب!C58","v":"محمد52"},{"$f":"الطلاب!D58","v":"7\\2"}]
[{"$f":"الطلاب!C59","v":"محمد53"},{"$f":"الطلاب!D59","v":"7\\2"}]
[{"$f":"الطلاب!C60","v":"محمد54"},{"$f":"الطلاب!D60","v":"7\\2"}]
[{"$f":"الطلاب!C61","v":"محمد55"},{"$f":"الطلاب!D61","v":"7\\2"}]
[{"$f":"الطلاب!C62","v":"محمد56"},{"$f":"الطلاب!D62","v":"7\\2"}]
[{"$f":"الطلاب!C63","v":"محمد57"},{"$f":"الطلاب!D63","v":"7\\2"}]
[{"$f":"الطلاب!C64","v":"محمد58"},{"$f":"الطلاب!D64","v":"7\\3"}]
[{"$f":"الطلاب!C65","v":"محمد59"},{"$f":"الطلاب!D65","v":"7\\3"}]
[{"$f":"الطلاب!C66","v":"محمد60"},{"$f":"الطلاب!D66","v":"7\\3"}]
[{"$f":"الطلاب!C67","v":"محمد61"},{"$f":"الطلاب!D67","v":"7\\3"}]
[{"$f":"الطلاب!C68","v":"محمد62"},{"$f":"الطلاب!D68","v":"7\\3"}]
[{"$f":"الطلاب!C69","v":"محمد63"},{"$f":"الطلاب!D69","v":"7\\3"}]
[{"$f":"الطلاب!C70","v":"محمد64"},{"$f":"الطلاب!D70","v":"7\\3"}]
[{"$f":"الطلاب!C71","v":"محمد65"},{"$f":"الطلاب!D71","v":"7\\3"}]
[{"$f":"الطلاب!C72","v":"محمد66"},{"$f":"الطلاب!D72","v":"7\\3"}]
[{"$f":"الطلاب!C73","v":"محمد67"},{"$f":"الطلاب!D73","v":"7\\3"}]
[{"$f":"الطلاب!C74","v":"محمد68"},{"$f":"الطلاب!D74","v":"7\\3"}]
[{"$f":"الطلاب!C75","v":"محمد69"},{"$f":"الطلاب!D75","v":"7\\3"}]
[{"$f":"الطلاب!C76","v":"محمد70"},{"$f":"الطلاب!D76","v":"7\\3"}]
[{"$f":"الطلاب!C77","v":"محمد71"},{"$f":"الطلاب!D77","v":"7\\3"}]
[{"$f":"الطلاب!C78","v":"محمد72"},{"$f":"الطلاب!D78","v":"7\\3"}]
[{"$f":"الطلاب!C79","v":"محمد73"},{"$f":"الطلاب!D79","v":"7\\3"}]
[{"$f":"الطلاب!C80","v":"محمد74"},{"$f":"الطلاب!D80","v":"7\\3"}]
[{"$f":"الطلاب!C81","v":"محمد75"},{"$f":"الطلاب!D81","v":"7\\3"}]
[{"$f":"الطلاب!C82","v":"محمد76"},{"$f":"الطلاب!D82","v":"7\\3"}]
[{"$f":"الطلاب!C83","v":"محمد77"},{"$f":"الطلاب!D83","v":"7\\3"}]
[{"$f":"الطلاب!C84","v":"محمد78"},{"$f":"الطلاب!D84","v":"7\\3"}]
[{"$f":"الطلاب!C85","v":"محمد79"},{"$f":"الطلاب!D85","v":"7\\3"}]
[{"$f":"الطلاب!C86","v":"محمد80"},{"$f":"الطلاب!D86","v":"7\\3"}]
[{"$f":"الطلاب!C87","v":"محمد81"},{"$f":"الطلاب!D87","v":"7\\3"}]
[{"$f":"الطلاب!C88","v":"محمد82"},{"$f":"الطلاب!D88","v":"7\\3"}]
[{"$f":"الطلاب!C89","v":"محمد83"},{"$f":"الطلاب!D89","v":"7\\3"}]
[{"$f":"الطلاب!C90","v":"محمد84"},{"$f":"الطلاب!D90","v":"7\\3"}]

{"sheet":"الغائبين","index":3,"n_rows":4,"n_cols":7,"rows_kept":4,"cut":false,"hidden":false,"merged":[]}
[null,null,"عدد الطلاب",null,null,"عدد مرات الغياب فأكثر","عدد مرات غياب محدد"]
[null,null,{"$f":"SUBTOTAL(2,$A$4:$A$9000)","v":1},null,null,1]
["#","اسم الطالب","الشعبة","عدد مرات الغياب"]
[1,"محمد1","7\\1",3]

{"sheet":"تقرير غياب طالب","index":4,"n_rows":7,"n_cols":9,"rows_kept":7,"cut":false,"hidden":false,"merged":[[3,2,3,3],[4,2,4,3],[2,7,2,8]]}
[]
[]
[null,null,null,null,null,null,null,{"$f":"TODAY()","v":"2023-12-15"}]
[null,null,"الصف"]
[null,null,"اسم الطالب:"]
[]
[null,null,"م","اسم الطالب","الصف","حال الحضور","التاريخ","الشهر","السنة"]

{"sheet":"الطلاب","index":5,"n_rows":720,"n_cols":11,"rows_kept":720,"cut":false,"hidden":false,"merged":[[1,8,1,10]]}
[]
[null,null,null,null,null,"عدد الطلاب","عدد الشعب",null,"عدد طلاب كل شعبة"]
[null,null,null,null,null,{"$f":"COUNTA(Table1[اسم الطالب])","v":84},{"$f":"COUNTA(_xlfn.UNIQUE(Table1[الشعبة]))","v":4},null,"السابع",{"$f":"Sheet4!A4","v":"7\\1"},{"$f":"COUNTIF(Table1[الشعبة],Sheet4!A4)","v":28}]
[null,null,null,null,null,null,null,null,null,{"$f":"Sheet4!A5","v":"7\\2"},{"$f":"COUNTIF(Table1[الشعبة],Sheet4!A5)","v":29}]
[null,null,null,null,null,null,null,null,null,{"$f":"Sheet4!A6","v":"7\\3"},{"$f":"COUNTIF(Table1[الشعبة],Sheet4!A6)","v":27}]
[null,"#","اسم الطالب","الشعبة","عدد مرات الغياب",null,null,null,null,{"$f":"Sheet4!A7","v":"7\\4"},{"$f":"COUNTIF(Table1[الشعبة],Sheet4!A7)","v":0}]
[null,{"$f":"ROW()-6","v":1},"محمد1","7\\1",{"$f":"COUNTIFS(Table13[حال الحضور],\"غائب\",Table13[اسم الطالب],Table1[[#This Row],[اسم الطالب]])","v":3},null,null,null,null,{"$f":"Sheet4!A8","v":"7\\5"},{"$f":"COUNTIF(Table1[الشعبة],Sheet4!A8)","v":0}]
[null,{"$f":"ROW()-6","v":2},"محمد2","7\\1",{"$f":"COUNTIFS(Table13[حال الحضور],\"غائب\",Table13[اسم الطالب],Table1[[#This Row],[اسم الطالب]])","v":0},null,null,null,null,{"$f":"Sheet4!A9","v":"7\\6"},{"$f":"COUNTIF(Table1[الشعبة],Sheet4!A9)","v":0}]
[null,3,"محمد3","7\\1",{"$f":"COUNTIFS(Table13[حال الحضور],\"غائب\",Table13[اسم الطالب],Table1[[#This Row],[اسم الطالب]])","v":0},null,null,null,null,{"$f":"Sheet4!A10","v":"7\\7"},{"$f":"COUNTIF(Table1[الشعبة],Sheet4!A10)","v":0}]
[null,4,"محمد4","7\\1",{"$f":"COUNTIFS(Table13[حال الحضور],\"غائب\",Table13[اسم الطالب],Table1[[#This Row],[اسم الطالب]])","v":0},null,null,null,null,{"$f":"Sheet4!A14","v":"8\\1"},{"$f":"COUNTIF(Table1[الشعبة],Sheet4!A14)","v":0}]
[null,5,"محمد5","7\\1",{"$f":"COUNTIFS(Table13[حال الحضور],\"غائب\",Table13[اسم الطالب],Table1[[#This Row],[اسم الطالب]])","v":0},null,null,null,null,{"$f":"Sheet4!A15","v":"8\\2"},{"$f":"COUNTIF(Table1[الشعبة],Sheet4!A15)","v":0}]
[null,6,"محمد6","7\\1",{"$f":"COUNTIFS(Table13[حال الحضور],\"غائب\",Table13[اسم الطالب],Table1[[#This Row],[اسم الطالب]])","v":0},null,null,null,null,{"$f":"Sheet4!A16","v":"8\\3"},{"$f":"COUNTIF(Table1[الشعبة],Sheet4!A16)","v":0}]
[null,7,"محمد7","7\\1",{"$f":"COUNTIFS(Table13[حال الحضور],\"غائب\",Table13[اسم الطالب],Table1[[#This Row],[اسم الطالب]])","v":0},null,null,null,"الثامن",{"$f":"Sheet4!A14","v":"8\\1"},{"$f":"COUNTIF(Table1[الشعبة],Sheet4!A14)","v":0}]
[null,8,"محمد8","7\\1",{"$f":"COUNTIFS(Table13[حال الحضور],\"غائب\",Table13[اسم الطالب],Table1[[#This Row],[اسم الطالب]])","v":0},null,null,null,null,{"$f":"Sheet4!A15","v":"8\\2"},{"$f":"COUNTIF(Table1[الشعبة],Sheet4!A15)","v":0}]
[null,9,"محمد9","7\\1",{"$f":"COUNTIFS(Table13[حال الحضور],\"غائب\",Table13[اسم الطالب],Table1[[#This Row],[اسم الطالب]])","v":0},null,null,null,null,{"$f":"Sheet4!A16","v":"8\\3"},{"$f":"COUNTIF(Table1[الشعبة],Sheet4!A16)","v":0}]
[null,10,"محمد10","7\\1",{"$f":"COUNTIFS(Table13[حال الحضور],\"غائب\",Table13[اسم الطالب],Table1[[#This Row],[اسم الطالب]])","v":0},null,null,null,null,{"$f":"Sheet4!A17","v":"8\\4"},{"$f":"COUNTIF(Table1[الشعبة],Sheet4!A17)","v":0}]
[null,11,"محمد11","7\\1",{"$f":"COUNTIFS(Table13[حال الحضور],\"غائب\",Table13[اسم الطالب],Table1[[#This Row],[اسم الطالب]])","v":0},null,null,null,null,{"$f":"Sheet4!A18","v":"8\\5"},{"$f":"COUNTIF(Table1[الشعبة],Sheet4!A18)","v":0}]
[null,12,"محمد12","7\\1",{"$f":"COUNTIFS(Table13[حال الحضور],\"غائب\",Table13[اسم الطالب],Table1[[#This Row],[اسم الطالب]])","v":0},null,null,null,null,{"$f":"Sheet4!A19","v":"8\\6"},{"$f":"COUNTIF(Table1[الشعبة],Sheet4!A19)","v":0}]
[null,13,"محمد13","7\\1",{"$f":"COUNTIFS(Table13[حال الحضور],\"غائب\",Table13[اسم الطالب],Table1[[#This Row],[اسم الطالب]])","v":0},null,null,null,null,{"$f":"Sheet4!A20","v":"8\\7"},{"$f":"COUNTIF(Table1[الشعبة],Sheet4!A20)","v":0}]
[null,{"$f":"ROW()-6","v":14},"محمد14","7\\1",{"$f":"COUNTIFS(Table13[حال الحضور],\"غائب\",Table13[اسم الطالب],Table1[[#This Row],[اسم الطالب]])","v":0},null,null,null,null,{"$f":"Sheet4!A21","v":"8\\8"},{"$f":"COUNTIF(Table1[الشعبة],Sheet4!A21)","v":0}]
[null,{"$f":"ROW()-6","v":15},"محمد15","7\\1",{"$f":"COUNTIFS(Table13[حال الحضور],\"غائب\",Table13[اسم الطالب],Table1[[#This Row],[اسم الطالب]])","v":0},null,null,null,"التاسع",{"$f":"Sheet4!A22","v":"9\\1"},{"$f":"COUNTIF(Table1[الشعبة],Sheet4!A22)","v":0}]
[null,16,"محمد16","7\\1",{"$f":"COUNTIFS(Table13[حال الحضور],\"غائب\",Table13[اسم الطالب],Table1[[#This Row],[اسم الطالب]])","v":0},null,null,null,null,{"$f":"Sheet4!A23","v":"9\\2"},{"$f":"COUNTIF(Table1[الشعبة],Sheet4!A23)","v":0}]
[null,17,"محمد17","7\\1",{"$f":"COUNTIFS(Table13[حال الحضور],\"غائب\",Table13[اسم الطالب],Table1[[#This Row],[اسم الطالب]])","v":0},null,null,null,null,{"$f":"Sheet4!A24","v":"9\\3"},{"$f":"COUNTIF(Table1[الشعبة],Sheet4!A24)","v":0}]
[null,18,"محمد18","7\\1",{"$f":"COUNTIFS(Table13[حال الحضور],\"غائب\",Table13[اسم الطالب],Table1[[#This Row],[اسم الطالب]])","v":0},null,null,null,null,{"$f":"Sheet4!A25","v":"9\\4"},{"$f":"COUNTIF(Table1[الشعبة],Sheet4!A25)","v":0}]
[null,19,"محمد19","7\\1",{"$f":"COUNTIFS(Table13[حال الحضور],\"غائب\",Table13[اسم الطالب],Table1[[#This Row],[اسم الطالب]])","v":0},null,null,null,null,{"$f":"Sheet4!A26","v":"9\\5"},{"$f":"COUNTIF(Table1[الشعبة],Sheet4!A26)","v":0}]
[null,20,"محمد20","7\\1",{"$f":"COUNTIFS(Table13[حال الحضور],\"غائب\",Table13[اسم الطالب],Table1[[#This Row],[اسم الطالب]])","v":0},null,null,null,null,{"$f":"Sheet4!A27","v":"9\\6"},{"$f":"COUNTIF(Table1[الشعبة],Sheet4!A27)","v":0}]
[null,21,"محمد21","7\\1",{"$f":"COUNTIFS(Table13[حال الحضور],\"غائب\",Table13[اسم الطالب],Table1[[#This Row],[اسم الطالب]])","v":0},null,null,null,null,{"$f":"Sheet4!A28","v":"9\\7"},{"$f":"COUNTIF(Table1[الشعبة],Sheet4!A28)","v":0}]
[null,22,"محمد22","7\\1",{"$f":"COUNTIFS(Table13[حال الحضور],\"غائب\",Table13[اسم الطالب],Table1[[#This Row],[اسم الطالب]])","v":0},null,null,null,null,{"$f":"Sheet4!A29","v":0},{"$f":"COUNTIF(Table1[الشعبة],Sheet4!A29)","v":0}]
[null,23,"محمد23","7\\1",{"$f":"COUNTIFS(Table13[حال الحضور],\"غائب\",Table13[اسم الطالب],Table1[[#This Row],[اسم الطالب]])","v":0}]
[null,24,"محمد24","7\\1",{"$f":"COUNTIFS(Table13[حال الحضور],\"غائب\",Table13[اسم الطالب],Table1[[#This Row],[اسم الطالب]])","v":0}]
[null,25,"محمد25","7\\1",{"$f":"COUNTIFS(Table13[حال الحضور],\"غائب\",Table13[اسم الطالب],Table1[[#This Row],[اسم الطالب]])","v":0}]
[null,26,"محمد26","7\\1",{"$f":"COUNTIFS(Table13[حال الحضور],\"غائب\",Table13[اسم الطالب],Table1[[#This Row],[اسم الطالب]])","v":0}]
[null,27,"محمد27","7\\1",{"$f":"COUNTIFS(Table13[حال الحضور],\"غائب\",Table13[اسم الطالب],Table1[[#This Row],[اسم الطالب]])","v":0}]
[null,28,"محمد28","7\\1",{"$f":"COUNTIFS(Table13[حال الحضور],\"غائب\",Table13[اسم الطالب],Table1[[#This Row],[اسم الطالب]])","v":0}]
[null,29,"محمد29","7\\2",{"$f":"COUNTIFS(Table13[حال الحضور],\"غائب\",Table13[اسم الطالب],Table1[[#This Row],[اسم الطالب]])","v":0}]
[null,30,"محمد30","7\\2",{"$f":"COUNTIFS(Table13[حال الحضور],\"غائب\",Table13[اسم الطالب],Table1[[#This Row],[اسم الطالب]])","v":0}]
[null,31,"محمد31","7\\2",{"$f":"COUNTIFS(Table13[حال الحضور],\"غائب\",Table13[اسم الطالب],Table1[[#This Row],[اسم الطالب]])","v":0}]
[null,32,"محمد32","7\\2",{"$f":"COUNTIFS(Table13[حال الحضور],\"غائب\",Table13[اسم الطالب],Table1[[#This Row],[اسم الطالب]])","v":0}]
[null,33,"محمد33","7\\2",{"$f":"COUNTIFS(Table13[حال الحضور],\"غائب\",Table13[اسم الطالب],Table1[[#This Row],[اسم الطالب]])","v":0}]
[null,34,"محمد34","7\\2",{"$f":"COUNTIFS(Table13[حال الحضور],\"غائب\",Table13[اسم الطالب],Table1[[#This Row],[اسم الطالب]])","v":0}]
[null,35,"محمد35","7\\2",{"$f":"COUNTIFS(Table13[حال الحضور],\"غائب\",Table13[اسم الطالب],Table1[[#This Row],[اسم الطالب]])","v":0}]
[null,36,"محمد36","7\\2",{"$f":"COUNTIFS(Table13[حال الحضور],\"غائب\",Table13[اسم الطالب],Table1[[#This Row],[اسم الطالب]])","v":0}]
[null,37,"محمد37","7\\2",{"$f":"COUNTIFS(Table13[حال الحضور],\"غائب\",Table13[اسم الطالب],Table1[[#This Row],[اسم الطالب]])","v":0}]
[null,38,"محمد38","7\\2",{"$f":"COUNTIFS(Table13[حال الحضور],\"غائب\",Table13[اسم الطالب],Table1[[#This Row],[اسم الطالب]])","v":0}]
[null,39,"محمد39","7\\2",{"$f":"COUNTIFS(Table13[حال الحضور],\"غائب\",Table13[اسم الطالب],Table1[[#This Row],[اسم الطالب]])","v":0}]
[null,40,"محمد40","7\\2",{"$f":"COUNTIFS(Table13[حال الحضور],\"غائب\",Table13[اسم الطالب],Table1[[#This Row],[اسم الطالب]])","v":0}]
[null,41,"محمد41","7\\2",{"$f":"COUNTIFS(Table13[حال الحضور],\"غائب\",Table13[اسم الطالب],Table1[[#This Row],[اسم الطالب]])","v":0}]
[null,42,"محمد42","7\\2",{"$f":"COUNTIFS(Table13[حال الحضور],\"غائب\",Table13[اسم الطالب],Table1[[#This Row],[اسم الطالب]])","v":0}]
[null,43,"محمد43","7\\2",{"$f":"COUNTIFS(Table13[حال الحضور],\"غائب\",Table13[اسم الطالب],Table1[[#This Row],[اسم الطالب]])","v":0}]
[null,44,"محمد44","7\\2",{"$f":"COUNTIFS(Table13[حال الحضور],\"غائب\",Table13[اسم الطالب],Table1[[#This Row],[اسم الطالب]])","v":0}]
[null,45,"محمد45","7\\2",{"$f":"COUNTIFS(Table13[حال الحضور],\"غائب\",Table13[اسم الطالب],Table1[[#This Row],[اسم الطالب]])","v":0}]
[null,46,"محمد46","7\\2",{"$f":"COUNTIFS(Table13[حال الحضور],\"غائب\",Table13[اسم الطالب],Table1[[#This Row],[اسم الطالب]])","v":0}]
[null,47,"محمد47","7\\2",{"$f":"COUNTIFS(Table13[حال الحضور],\"غائب\",Table13[اسم الطالب],Table1[[#This Row],[اسم الطالب]])","v":0}]
[null,48,"محمد48","7\\2",{"$f":"COUNTIFS(Table13[حال الحضور],\"غائب\",Table13[اسم الطالب],Table1[[#This Row],[اسم الطالب]])","v":0}]
[null,49,"محمد49","7\\2",{"$f":"COUNTIFS(Table13[حال الحضور],\"غائب\",Table13[اسم الطالب],Table1[[#This Row],[اسم الطالب]])","v":0}]
[null,50,"محمد50","7\\2",{"$f":"COUNTIFS(Table13[حال الحضور],\"غائب\",Table13[اسم الطالب],Table1[[#This Row],[اسم الطالب]])","v":0}]
[null,51,"محمد51","7\\2",{"$f":"COUNTIFS(Table13[حال الحضور],\"غائب\",Table13[اسم الطالب],Table1[[#This Row],[اسم الطالب]])","v":0}]
[null,52,"محمد52","7\\2",{"$f":"COUNTIFS(Table13[حال الحضور],\"غائب\",Table13[اسم الطالب],Table1[[#This Row],[اسم الطالب]])","v":0}]
[null,53,"محمد53","7\\2",{"$f":"COUNTIFS(Table13[حال الحضور],\"غائب\",Table13[اسم الطالب],Table1[[#This Row],[اسم الطالب]])","v":0}]
[null,54,"محمد54","7\\2",{"$f":"COUNTIFS(Table13[حال الحضور],\"غائب\",Table13[اسم الطالب],Table1[[#This Row],[اسم الطالب]])","v":0}]
[null,55,"محمد55","7\\2",{"$f":"COUNTIFS(Table13[حال الحضور],\"غائب\",Table13[اسم الطالب],Table1[[#This Row],[اسم الطالب]])","v":0}]
[null,56,"محمد56","7\\2",{"$f":"COUNTIFS(Table13[حال الحضور],\"غائب\",Table13[اسم الطالب],Table1[[#This Row],[اسم الطالب]])","v":0}]
[null,57,"محمد57","7\\2",{"$f":"COUNTIFS(Table13[حال الحضور],\"غائب\",Table13[اسم الطالب],Table1[[#This Row],[اسم الطالب]])","v":0}]
[null,58,"محمد58","7\\3",{"$f":"COUNTIFS(Table13[حال الحضور],\"غائب\",Table13[اسم الطالب],Table1[[#This Row],[اسم الطالب]])","v":0}]
[null,59,"محمد59","7\\3",{"$f":"COUNTIFS(Table13[حال الحضور],\"غائب\",Table13[اسم الطالب],Table1[[#This Row],[اسم الطالب]])","v":0}]
[null,60,"محمد60","7\\3",{"$f":"COUNTIFS(Table13[حال الحضور],\"غائب\",Table13[اسم الطالب],Table1[[#This Row],[اسم الطالب]])","v":0}]
[null,61,"محمد61","7\\3",{"$f":"COUNTIFS(Table13[حال الحضور],\"غائب\",Table13[اسم الطالب],Table1[[#This Row],[اسم الطالب]])","v":0}]
[null,62,"محمد62","7\\3",{"$f":"COUNTIFS(Table13[حال الحضور],\"غائب\",Table13[اسم الطالب],Table1[[#This Row],[اسم الطالب]])","v":0}]
[null,63,"محمد63","7\\3",{"$f":"COUNTIFS(Table13[حال الحضور],\"غائب\",Table13[اسم الطالب],Table1[[#This Row],[اسم الطالب]])","v":0}]
[null,64,"محمد64","7\\3",{"$f":"COUNTIFS(Table13[حال الحضور],\"غائب\",Table13[اسم الطالب],Table1[[#This Row],[اسم الطالب]])","v":0}]
[null,65,"محمد65","7\\3",{"$f":"COUNTIFS(Table13[حال الحضور],\"غائب\",Table13[اسم الطالب],Table1[[#This Row],[اسم الطالب]])","v":0}]
[null,66,"محمد66","7\\3",{"$f":"COUNTIFS(Table13[حال الحضور],\"غائب\",Table13[اسم الطالب],Table1[[#This Row],[اسم الطالب]])","v":0}]
[null,67,"محمد67","7\\3",{"$f":"COUNTIFS(Table13[حال الحضور],\"غائب\",Table13[اسم الطالب],Table1[[#This Row],[اسم الطالب]])","v":0}]
[null,68,"محمد68","7\\3",{"$f":"COUNTIFS(Table13[حال الحضور],\"غائب\",Table13[اسم الطالب],Table1[[#This Row],[اسم الطالب]])","v":0}]
[null,69,"محمد69","7\\3",{"$f":"COUNTIFS(Table13[حال الحضور],\"غائب\",Table13[اسم الطالب],Table1[[#This Row],[اسم الطالب]])","v":0}]
[null,70,"محمد70","7\\3",{"$f":"COUNTIFS(Table13[حال الحضور],\"غائب\",Table13[اسم الطالب],Table1[[#This Row],[اسم الطالب]])","v":0}]
[null,71,"محمد71","7\\3",{"$f":"COUNTIFS(Table13[حال الحضور],\"غائب\",Table13[اسم الطالب],Table1[[#This Row],[اسم الطالب]])","v":0}]
[null,72,"محمد72","7\\3",{"$f":"COUNTIFS(Table13[حال الحضور],\"غائب\",Table13[اسم الطالب],Table1[[#This Row],[اسم الطالب]])","v":0}]
[null,73,"محمد73","7\\3",{"$f":"COUNTIFS(Table13[حال الحضور],\"غائب\",Table13[اسم الطالب],Table1[[#This Row],[اسم الطالب]])","v":0}]
[null,74,"محمد74","7\\3",{"$f":"COUNTIFS(Table13[حال الحضور],\"غائب\",Table13[اسم الطالب],Table1[[#This Row],[اسم الطالب]])","v":0}]
[null,75,"محمد75","7\\3",{"$f":"COUNTIFS(Table13[حال الحضور],\"غائب\",Table13[اسم الطالب],Table1[[#This Row],[اسم الطالب]])","v":0}]
[null,76,"محمد76","7\\3",{"$f":"COUNTIFS(Table13[حال الحضور],\"غائب\",Table13[اسم الطالب],Table1[[#This Row],[اسم الطالب]])","v":0}]
[null,77,"محمد77","7\\3",{"$f":"COUNTIFS(Table13[حال الحضور],\"غائب\",Table13[اسم الطالب],Table1[[#This Row],[اسم الطالب]])","v":0}]
[null,78,"محمد78","7\\3",{"$f":"COUNTIFS(Table13[حال الحضور],\"غائب\",Table13[اسم الطالب],Table1[[#This Row],[اسم الطالب]])","v":0}]
[null,{"$f":"ROW()-6","v":79},"محمد79","7\\3",{"$f":"COUNTIFS(Table13[حال الحضور],\"غائب\",Table13[اسم الطالب],Table1[[#This Row],[اسم الطالب]])","v":0}]
[null,80,"محمد80","7\\3",{"$f":"COUNTIFS(Table13[حال الحضور],\"غائب\",Table13[اسم الطالب],Table1[[#This Row],[اسم الطالب]])","v":0}]
[null,81,"محمد81","7\\3",{"$f":"COUNTIFS(Table13[حال الحضور],\"غائب\",Table13[اسم الطالب],Table1[[#This Row],[اسم الطالب]])","v":0}]
[null,82,"محمد82","7\\3",{"$f":"COUNTIFS(Table13[حال الحضور],\"غائب\",Table13[اسم الطالب],Table1[[#This Row],[اسم الطالب]])","v":0}]
[null,83,"محمد83","7\\3",{"$f":"COUNTIFS(Table13[حال الحضور],\"غائب\",Table13[اسم الطالب],Table1[[#This Row],[اسم الطالب]])","v":0}]
[null,84,"محمد84","7\\3",{"$f":"COUNTIFS(Table13[حال الحضور],\"غائب\",Table13[اسم الطالب],Table1[[#This Row],[اسم الطالب]])","v":0}]
[null,85,null,null,{"$f":"COUNTIFS(Table13[حال الحضور],\"غائب\",Table13[اسم الطالب],Table1[[#This Row],[اسم الطالب]])","v":0}]
[null,86,null,null,{"$f":"COUNTIFS(Table13[حال الحضور],\"غائب\",Table13[اسم الطالب],Table1[[#This Row],[اسم الطالب]])","v":0}]
[null,87,null,null,{"$f":"COUNTIFS(Table13[حال الحضور],\"غائب\",Table13[اسم الطالب],Table1[[#This Row],[اسم الطالب]])","v":0}]
[null,88,null,null,{"$f":"COUNTIFS(Table13[حال الحضور],\"غائب\",Table13[اسم الطالب],Table1[[#This Row],[اسم الطالب]])","v":0}]
[null,89,null,null,{"$f":"COUNTIFS(Table13[حال الحضور],\"غائب\",Table13[اسم الطالب],Table1[[#This Row],[اسم الطالب]])","v":0}]
[null,90,null,null,{"$f":"COUNTIFS(Table13[حال الحضور],\"غائب\",Table13[اسم الطالب],Table1[[#This Row],[اسم الطالب]])","v":0}]
[null,91,null,null,{"$f":"COUNTIFS(Table13[حال الحضور],\"غائب\",Table13[اسم الطالب],Table1[[#This Row],[اسم الطالب]])","v":0}]
[null,92,null,null,{"$f":"COUNTIFS(Table13[حال الحضور],\"غائب\",Table13[اسم الطالب],Table1[[#This Row],[اسم الطالب]])","v":0}]
[null,93,null,null,{"$f":"COUNTIFS(Table13[حال الحضور],\"غائب\",Table13[اسم الطالب],Table1[[#This Row],[اسم الطالب]])","v":0}]
[null,94,null,null,{"$f":"COUNTIFS(Table13[حال الحضور],\"غائب\",Table13[اسم الطالب],Table1[[#This Row],[اسم الطالب]])","v":0}]
[null,95,null,null,{"$f":"COUNTIFS(Table13[حال الحضور],\"غائب\",Table13[اسم الطالب],Table1[[#This Row],[اسم الطالب]])","v":0}]
[null,96,null,null,{"$f":"COUNTIFS(Table13[حال الحضور],\"غائب\",Table13[اسم الطالب],Table1[[#This Row],[اسم الطالب]])","v":0}]
[null,97,null,null,{"$f":"COUNTIFS(Table13[حال الحضور],\"غائب\",Table13[اسم الطالب],Table1[[#This Row],[اسم الطالب]])","v":0}]
[null,98,null,null,{"$f":"COUNTIFS(Table13[حال الحضور],\"غائب\",Table13[اسم الطالب],Table1[[#This Row],[اسم الطالب]])","v":0}]
[null,99,null,null,{"$f":"COUNTIFS(Table13[حال الحضور],\"غائب\",Table13[اسم الطالب],Table1[[#This Row],[اسم الطالب]])","v":0}]
[null,100,null,null,{"$f":"COUNTIFS(Table13[حال الحضور],\"غائب\",Table13[اسم الطالب],Table1[[#This Row],[اسم الطالب]])","v":0}]
[null,101,null,null,{"$f":"COUNTIFS(Table13[حال الحضور],\"غائب\",Table13[اسم الطالب],Table1[[#This Row],[اسم الطالب]])","v":0}]
[null,102,null,null,{"$f":"COUNTIFS(Table13[حال الحضور],\"غائب\",Table13[اسم الطالب],Table1[[#This Row],[اسم الطالب]])","v":0}]
[null,103,null,null,{"$f":"COUNTIFS(Table13[حال الحضور],\"غائب\",Table13[اسم الطالب],Table1[[#This Row],[اسم الطالب]])","v":0}]
[null,104,null,null,{"$f":"COUNTIFS(Table13[حال الحضور],\"غائب\",Table13[اسم الطالب],Table1[[#This Row],[اسم الطالب]])","v":0}]
[null,105,null,null,{"$f":"COUNTIFS(Table13[حال الحضور],\"غائب\",Table13[اسم الطالب],Table1[[#This Row],[اسم الطالب]])","v":0}]
[null,106,null,null,{"$f":"COUNTIFS(Table13[حال الحضور],\"غائب\",Table13[اسم الطالب],Table1[[#This Row],[اسم الطالب]])","v":0}]
[null,107,null,null,{"$f":"COUNTIFS(Table13[حال الحضور],\"غائب\",Table13[اسم الطالب],Table1[[#This Row],[اسم الطالب]])","v":0}]
[null,108,null,null,{"$f":"COUNTIFS(Table13[حال الحضور],\"غائب\",Table13[اسم الطالب],Table1[[#This Row],[اسم الطالب]])","v":0}]
[null,109,null,null,{"$f":"COUNTIFS(Table13[حال الحضور],\"غائب\",Table13[اسم الطالب],Table1[[#This Row],[اسم الطالب]])","v":0}]
[null,110,null,null,{"$f":"COUNTIFS(Table13[حال الحضور],\"غائب\",Table13[اسم الطالب],Table1[[#This Row],[اسم الطالب]])","v":0}]
[null,111,null,null,{"$f":"COUNTIFS(Table13[حال الحضور],\"غائب\",Table13[اسم الطالب],Table1[[#This Row],[اسم الطالب]])","v":0}]
[null,112,null,null,{"$f":"COUNTIFS(Table13[حال الحضور],\"غائب\",Table13[اسم الطالب],Table1[[#This Row],[اسم الطالب]])","v":0}]
[null,113,null,null,{"$f":"COUNTIFS(Table13[حال الحضور],\"غائب\",Table13[اسم الطالب],Table1[[#This Row],[اسم الطالب]])","v":0}]
[null,114,null,null,{"$f":"COUNTIFS(Table13[حال الحضور],\"غائب\",Table13[اسم الطالب],Table1[[#This Row],[اسم الطالب]])","v":0}]
[null,115,null,null,{"$f":"COUNTIFS(Table13[حال الحضور],\"غائب\",Table13[اسم الطالب],Table1[[#This Row],[اسم الطالب]])","v":0}]
[null,116,null,null,{"$f":"COUNTIFS(Table13[حال الحضور],\"غائب\",Table13[اسم الطالب],Table1[[#This Row],[اسم الطالب]])","v":0}]
[null,117,null,null,{"$f":"COUNTIFS(Table13[حال الحضور],\"غائب\",Table13[اسم الطالب],Table1[[#This Row],[اسم الطالب]])","v":0}]
[null,118,null,null,{"$f":"COUNTIFS(Table13[حال الحضور],\"غائب\",Table13[اسم الطالب],Table1[[#This Row],[اسم الطالب]])","v":0}]
[null,119,null,null,{"$f":"COUNTIFS(Table13[حال الحضور],\"غائب\",Table13[اسم الطالب],Table1[[#This Row],[اسم الطالب]])","v":0}]
[null,120,null,null,{"$f":"COUNTIFS(Table13[حال الحضور],\"غائب\",Table13[اسم الطالب],Table1[[#This Row],[اسم الطالب]])","v":0}]
[null,121,null,null,{"$f":"COUNTIFS(Table13[حال الحضور],\"غائب\",Table13[اسم الطالب],Table1[[#This Row],[اسم الطالب]])","v":0}]
[null,122,null,null,{"$f":"COUNTIFS(Table13[حال الحضور],\"غائب\",Table13[اسم الطالب],Table1[[#This Row],[اسم الطالب]])","v":0}]
[null,123,null,null,{"$f":"COUNTIFS(Table13[حال الحضور],\"غائب\",Table13[اسم الطالب],Table1[[#This Row],[اسم الطالب]])","v":0}]
[null,124,null,null,{"$f":"COUNTIFS(Table13[حال الحضور],\"غائب\",Table13[اسم الطالب],Table1[[#This Row],[اسم الطالب]])","v":0}]
[null,125,null,null,{"$f":"COUNTIFS(Table13[حال الحضور],\"غائب\",Table13[اسم الطالب],Table1[[#This Row],[اسم الطالب]])","v":0}]
[null,126,null,null,{"$f":"COUNTIFS(Table13[حال الحضور],\"غائب\",Table13[اسم الطالب],Table1[[#This Row],[اسم الطالب]])","v":0}]
[null,127,null,null,{"$f":"COUNTIFS(Table13[حال الحضور],\"غائب\",Table13[اسم الطالب],Table1[[#This Row],[اسم الطالب]])","v":0}]
[null,128,null,null,{"$f":"COUNTIFS(Table13[حال الحضور],\"غائب\",Table13[اسم الطالب],Table1[[#This Row],[اسم الطالب]])","v":0}]
[null,129,null,null,{"$f":"COUNTIFS(Table13[حال الحضور],\"غائب\",Table13[اسم الطالب],Table1[[#This Row],[اسم الطالب]])","v":0}]
[null,130,null,null,{"$f":"COUNTIFS(Table13[حال الحضور],\"غائب\",Table13[اسم الطالب],Table1[[#This Row],[اسم الطالب]])","v":0}]
[null,131,null,null,{"$f":"COUNTIFS(Table13[حال الحضور],\"غائب\",Table13[اسم الطالب],Table1[[#This Row],[اسم الطالب]])","v":0}]
[null,132,null,null,{"$f":"COUNTIFS(Table13[حال الحضور],\"غائب\",Table13[اسم الطالب],Table1[[#This Row],[اسم الطالب]])","v":0}]
[null,133,null,null,{"$f":"COUNTIFS(Table13[حال الحضور],\"غائب\",Table13[اسم الطالب],Table1[[#This Row],[اسم الطالب]])","v":0}]
[null,134,null,null,{"$f":"COUNTIFS(Table13[حال الحضور],\"غائب\",Table13[اسم الطالب],Table1[[#This Row],[اسم الطالب]])","v":0}]
[null,135,null,null,{"$f":"COUNTIFS(Table13[حال الحضور],\"غائب\",Table13[اسم الطالب],Table1[[#This Row],[اسم الطالب]])","v":0}]
[null,136,null,null,{"$f":"COUNTIFS(Table13[حال الحضور],\"غائب\",Table13[اسم الطالب],Table1[[#This Row],[اسم الطالب]])","v":0}]
[null,137,null,null,{"$f":"COUNTIFS(Table13[حال الحضور],\"غائب\",Table13[اسم الطالب],Table1[[#This Row],[اسم الطالب]])","v":0}]
[null,138,null,null,{"$f":"COUNTIFS(Table13[حال الحضور],\"غائب\",Table13[اسم الطالب],Table1[[#This Row],[اسم الطالب]])","v":0}]
[null,139,null,null,{"$f":"COUNTIFS(Table13[حال الحضور],\"غائب\",Table13[اسم الطالب],Table1[[#This Row],[اسم الطالب]])","v":0}]
[null,140,null,null,{"$f":"COUNTIFS(Table13[حال الحضور],\"غائب\",Table13[اسم الطالب],Table1[[#This Row],[اسم الطالب]])","v":0}]
[null,141,null,null,{"$f":"COUNTIFS(Table13[حال الحضور],\"غائب\",Table13[اسم الطالب],Table1[[#This Row],[اسم الطالب]])","v":0}]
[null,142,null,null,{"$f":"COUNTIFS(Table13[حال الحضور],\"غائب\",Table13[اسم الطالب],Table1[[#This Row],[اسم الطالب]])","v":0}]
[null,{"$f":"ROW()-6","v":143},null,null,{"$f":"COUNTIFS(Table13[حال الحضور],\"غائب\",Table13[اسم الطالب],Table1[[#This Row],[اسم الطالب]])","v":0}]
[null,144,null,null,{"$f":"COUNTIFS(Table13[حال الحضور],\"غائب\",Table13[اسم الطالب],Table1[[#This Row],[اسم الطالب]])","v":0}]
[null,145,null,null,{"$f":"COUNTIFS(Table13[حال الحضور],\"غائب\",Table13[اسم الطالب],Table1[[#This Row],[اسم الطالب]])","v":0}]
[null,146,null,null,{"$f":"COUNTIFS(Table13[حال الحضور],\"غائب\",Table13[اسم الطالب],Table1[[#This Row],[اسم الطالب]])","v":0}]
[null,147,null,null,{"$f":"COUNTIFS(Table13[حال الحضور],\"غائب\",Table13[اسم الطالب],Table1[[#This Row],[اسم الطالب]])","v":0}]
[null,148,null,null,{"$f":"COUNTIFS(Table13[حال الحضور],\"غائب\",Table13[اسم الطالب],Table1[[#This Row],[اسم الطالب]])","v":0}]
[null,149,null,null,{"$f":"COUNTIFS(Table13[حال الحضور],\"غائب\",Table13[اسم الطالب],Table1[[#This Row],[اسم الطالب]])","v":0}]
[null,150,null,null,{"$f":"COUNTIFS(Table13[حال الحضور],\"غائب\",Table13[اسم الطالب],Table1[[#This Row],[اسم الطالب]])","v":0}]
[null,151,null,null,{"$f":"COUNTIFS(Table13[حال الحضور],\"غائب\",Table13[اسم الطالب],Table1[[#This Row],[اسم الطالب]])","v":0}]
[null,152,null,null,{"$f":"COUNTIFS(Table13[حال الحضور],\"غائب\",Table13[اسم الطالب],Table1[[#This Row],[اسم الطالب]])","v":0}]
[null,153,null,null,{"$f":"COUNTIFS(Table13[حال الحضور],\"غائب\",Table13[اسم الطالب],Table1[[#This Row],[اسم الطالب]])","v":0}]
[null,154,null,null,{"$f":"COUNTIFS(Table13[حال الحضور],\"غائب\",Table13[اسم الطالب],Table1[[#This Row],[اسم الطالب]])","v":0}]
[null,155,null,null,{"$f":"COUNTIFS(Table13[حال الحضور],\"غائب\",Table13[اسم الطالب],Table1[[#This Row],[اسم الطالب]])","v":0}]
[null,156,null,null,{"$f":"COUNTIFS(Table13[حال الحضور],\"غائب\",Table13[اسم الطالب],Table1[[#This Row],[اسم الطالب]])","v":0}]
[null,157,null,null,{"$f":"COUNTIFS(Table13[حال الحضور],\"غائب\",Table13[اسم الطالب],Table1[[#This Row],[اسم الطالب]])","v":0}]
[null,158,null,null,{"$f":"COUNTIFS(Table13[حال الحضور],\"غائب\",Table13[اسم الطالب],Table1[[#This Row],[اسم الطالب]])","v":0}]
[null,159,null,null,{"$f":"COUNTIFS(Table13[حال الحضور],\"غائب\",Table13[اسم الطالب],Table1[[#This Row],[اسم الطالب]])","v":0}]
[null,160,null,null,{"$f":"COUNTIFS(Table13[حال الحضور],\"غائب\",Table13[اسم الطالب],Table1[[#This Row],[اسم الطالب]])","v":0}]
[null,161,null,null,{"$f":"COUNTIFS(Table13[حال الحضور],\"غائب\",Table13[اسم الطالب],Table1[[#This Row],[اسم الطالب]])","v":0}]
[null,162,null,null,{"$f":"COUNTIFS(Table13[حال الحضور],\"غائب\",Table13[اسم الطالب],Table1[[#This Row],[اسم الطالب]])","v":0}]
[null,163,null,null,{"$f":"COUNTIFS(Table13[حال الحضور],\"غائب\",Table13[اسم الطالب],Table1[[#This Row],[اسم الطالب]])","v":0}]
[null,164,null,null,{"$f":"COUNTIFS(Table13[حال الحضور],\"غائب\",Table13[اسم الطالب],Table1[[#This Row],[اسم الطالب]])","v":0}]
[null,165,null,null,{"$f":"COUNTIFS(Table13[حال الحضور],\"غائب\",Table13[اسم الطالب],Table1[[#This Row],[اسم الطالب]])","v":0}]
[null,166,null,null,{"$f":"COUNTIFS(Table13[حال الحضور],\"غائب\",Table13[اسم الطالب],Table1[[#This Row],[اسم الطالب]])","v":0}]
[null,167,null,null,{"$f":"COUNTIFS(Table13[حال الحضور],\"غائب\",Table13[اسم الطالب],Table1[[#This Row],[اسم الطالب]])","v":0}]
[null,168,null,null,{"$f":"COUNTIFS(Table13[حال الحضور],\"غائب\",Table13[اسم الطالب],Table1[[#This Row],[اسم الطالب]])","v":0}]
[null,169,null,null,{"$f":"COUNTIFS(Table13[حال الحضور],\"غائب\",Table13[اسم الطالب],Table1[[#This Row],[اسم الطالب]])","v":0}]
[null,170,null,null,{"$f":"COUNTIFS(Table13[حال الحضور],\"غائب\",Table13[اسم الطالب],Table1[[#This Row],[اسم الطالب]])","v":0}]
[null,171,null,null,{"$f":"COUNTIFS(Table13[حال الحضور],\"غائب\",Table13[اسم الطالب],Table1[[#This Row],[اسم الطالب]])","v":0}]
[null,172,null,null,{"$f":"COUNTIFS(Table13[حال الحضور],\"غائب\",Table13[اسم الطالب],Table1[[#This Row],[اسم الطالب]])","v":0}]
[null,173,null,null,{"$f":"COUNTIFS(Table13[حال الحضور],\"غائب\",Table13[اسم الطالب],Table1[[#This Row],[اسم الطالب]])","v":0}]
[null,174,null,null,{"$f":"COUNTIFS(Table13[حال الحضور],\"غائب\",Table13[اسم الطالب],Table1[[#This Row],[اسم الطالب]])","v":0}]
[null,175,null,null,{"$f":"COUNTIFS(Table13[حال الحضور],\"غائب\",Table13[اسم الطالب],Table1[[#This Row],[اسم الطالب]])","v":0}]
[null,176,null,null,{"$f":"COUNTIFS(Table13[حال الحضور],\"غائب\",Table13[اسم الطالب],Table1[[#This Row],[اسم الطالب]])","v":0}]
[null,177,null,null,{"$f":"COUNTIFS(Table13[حال الحضور],\"غائب\",Table13[اسم الطالب],Table1[[#This Row],[اسم الطالب]])","v":0}]
[null,178,null,null,{"$f":"COUNTIFS(Table13[حال الحضور],\"غائب\",Table13[اسم الطالب],Table1[[#This Row],[اسم الطالب]])","v":0}]
[null,179,null,null,{"$f":"COUNTIFS(Table13[حال الحضور],\"غائب\",Table13[اسم الطالب],Table1[[#This Row],[اسم الطالب]])","v":0}]
[null,180,null,null,{"$f":"COUNTIFS(Table13[حال الحضور],\"غائب\",Table13[اسم الطالب],Table1[[#This Row],[اسم الطالب]])","v":0}]
[null,181,null,null,{"$f":"COUNTIFS(Table13[حال الحضور],\"غائب\",Table13[اسم الطالب],Table1[[#This Row],[اسم الطالب]])","v":0}]
[null,182,null,null,{"$f":"COUNTIFS(Table13[حال الحضور],\"غائب\",Table13[اسم الطالب],Table1[[#This Row],[اسم الطالب]])","v":0}]
[null,183,null,null,{"$f":"COUNTIFS(Table13[حال الحضور],\"غائب\",Table13[اسم الطالب],Table1[[#This Row],[اسم الطالب]])","v":0}]
[null,184,null,null,{"$f":"COUNTIFS(Table13[حال الحضور],\"غائب\",Table13[اسم الطالب],Table1[[#This Row],[اسم الطالب]])","v":0}]
[null,185,null,null,{"$f":"COUNTIFS(Table13[حال الحضور],\"غائب\",Table13[اسم الطالب],Table1[[#This Row],[اسم الطالب]])","v":0}]
[null,186,null,null,{"$f":"COUNTIFS(Table13[حال الحضور],\"غائب\",Table13[اسم الطالب],Table1[[#This Row],[اسم الطالب]])","v":0}]
[null,187,null,null,{"$f":"COUNTIFS(Table13[حال الحضور],\"غائب\",Table13[اسم الطالب],Table1[[#This Row],[اسم الطالب]])","v":0}]
[null,188,null,null,{"$f":"COUNTIFS(Table13[حال الحضور],\"غائب\",Table13[اسم الطالب],Table1[[#This Row],[اسم الطالب]])","v":0}]
[null,189,null,null,{"$f":"COUNTIFS(Table13[حال الحضور],\"غائب\",Table13[اسم الطالب],Table1[[#This Row],[اسم الطالب]])","v":0}]
[null,190,null,null,{"$f":"COUNTIFS(Table13[حال الحضور],\"غائب\",Table13[اسم الطالب],Table1[[#This Row],[اسم الطالب]])","v":0}]
[null,191,null,null,{"$f":"COUNTIFS(Table13[حال الحضور],\"غائب\",Table13[اسم الطالب],Table1[[#This Row],[اسم الطالب]])","v":0}]
[null,192,null,null,{"$f":"COUNTIFS(Table13[حال الحضور],\"غائب\",Table13[اسم الطالب],Table1[[#This Row],[اسم الطالب]])","v":0}]
[null,193,null,null,{"$f":"COUNTIFS(Table13[حال الحضور],\"غائب\",Table13[اسم الطالب],Table1[[#This Row],[اسم الطالب]])","v":0}]
[null,194,null,null,{"$f":"COUNTIFS(Table13[حال الحضور],\"غائب\",Table13[اسم الطالب],Table1[[#This Row],[اسم الطالب]])","v":0}]
[null,195,null,null,{"$f":"COUNTIFS(Table13[حال الحضور],\"غائب\",Table13[اسم الطالب],Table1[[#This Row],[اسم الطالب]])","v":0}]
[null,196,null,null,{"$f":"COUNTIFS(Table13[حال الحضور],\"غائب\",Table13[اسم الطالب],Table1[[#This Row],[اسم الطالب]])","v":0}]
[null,197,null,null,{"$f":"COUNTIFS(Table13[حال الحضور],\"غائب\",Table13[اسم الطالب],Table1[[#This Row],[اسم الطالب]])","v":0}]
[null,198,null,null,{"$f":"COUNTIFS(Table13[حال الحضور],\"غائب\",Table13[اسم الطالب],Table1[[#This Row],[اسم الطالب]])","v":0}]
[null,199,null,null,{"$f":"COUNTIFS(Table13[حال الحضور],\"غائب\",Table13[اسم الطالب],Table1[[#This Row],[اسم الطالب]])","v":0}]
[null,200,null,null,{"$f":"COUNTIFS(Table13[حال الحضور],\"غائب\",Table13[اسم الطالب],Table1[[#This Row],[اسم الطالب]])","v":0}]
[null,201,null,null,{"$f":"COUNTIFS(Table13[حال الحضور],\"غائب\",Table13[اسم الطالب],Table1[[#This Row],[اسم الطالب]])","v":0}]
[null,202,null,null,{"$f":"COUNTIFS(Table13[حال الحضور],\"غائب\",Table13[اسم الطالب],Table1[[#This Row],[اسم الطالب]])","v":0}]
[null,203,null,null,{"$f":"COUNTIFS(Table13[حال الحضور],\"غائب\",Table13[اسم الطالب],Table1[[#This Row],[اسم الطالب]])","v":0}]
[null,204,null,null,{"$f":"COUNTIFS(Table13[حال الحضور],\"غائب\",Table13[اسم الطالب],Table1[[#This Row],[اسم الطالب]])","v":0}]
[null,205,null,null,{"$f":"COUNTIFS(Table13[حال الحضور],\"غائب\",Table13[اسم الطالب],Table1[[#This Row],[اسم الطالب]])","v":0}]
[null,206,null,null,{"$f":"COUNTIFS(Table13[حال الحضور],\"غائب\",Table13[اسم الطالب],Table1[[#This Row],[اسم الطالب]])","v":0}]
[null,{"$f":"ROW()-6","v":207},null,null,{"$f":"COUNTIFS(Table13[حال الحضور],\"غائب\",Table13[اسم الطالب],Table1[[#This Row],[اسم الطالب]])","v":0}]
[null,208,null,null,{"$f":"COUNTIFS(Table13[حال الحضور],\"غائب\",Table13[اسم الطالب],Table1[[#This Row],[اسم الطالب]])","v":0}]
[null,209,null,null,{"$f":"COUNTIFS(Table13[حال الحضور],\"غائب\",Table13[اسم الطالب],Table1[[#This Row],[اسم الطالب]])","v":0}]
[null,210,null,null,{"$f":"COUNTIFS(Table13[حال الحضور],\"غائب\",Table13[اسم الطالب],Table1[[#This Row],[اسم الطالب]])","v":0}]
[null,211,null,null,{"$f":"COUNTIFS(Table13[حال الحضور],\"غائب\",Table13[اسم الطالب],Table1[[#This Row],[اسم الطالب]])","v":0}]
[null,212,null,null,{"$f":"COUNTIFS(Table13[حال الحضور],\"غائب\",Table13[اسم الطالب],Table1[[#This Row],[اسم الطالب]])","v":0}]
[null,213,null,null,{"$f":"COUNTIFS(Table13[حال الحضور],\"غائب\",Table13[اسم الطالب],Table1[[#This Row],[اسم الطالب]])","v":0}]
[null,214,null,null,{"$f":"COUNTIFS(Table13[حال الحضور],\"غائب\",Table13[اسم الطالب],Table1[[#This Row],[اسم الطالب]])","v":0}]
[null,215,null,null,{"$f":"COUNTIFS(Table13[حال الحضور],\"غائب\",Table13[اسم الطالب],Table1[[#This Row],[اسم الطالب]])","v":0}]
[null,216,null,null,{"$f":"COUNTIFS(Table13[حال الحضور],\"غائب\",Table13[اسم الطالب],Table1[[#This Row],[اسم الطالب]])","v":0}]
[null,217,null,null,{"$f":"COUNTIFS(Table13[حال الحضور],\"غائب\",Table13[اسم الطالب],Table1[[#This Row],[اسم الطالب]])","v":0}]
[null,218,null,null,{"$f":"COUNTIFS(Table13[حال الحضور],\"غائب\",Table13[اسم الطالب],Table1[[#This Row],[اسم الطالب]])","v":0}]
[null,219,null,null,{"$f":"COUNTIFS(Table13[حال الحضور],\"غائب\",Table13[اسم الطالب],Table1[[#This Row],[اسم الطالب]])","v":0}]
[null,220,null,null,{"$f":"COUNTIFS(Table13[حال الحضور],\"غائب\",Table13[اسم الطالب],Table1[[#This Row],[اسم الطالب]])","v":0}]
[null,221,null,null,{"$f":"COUNTIFS(Table13[حال الحضور],\"غائب\",Table13[اسم الطالب],Table1[[#This Row],[اسم الطالب]])","v":0}]
[null,222,null,null,{"$f":"COUNTIFS(Table13[حال الحضور],\"غائب\",Table13[اسم الطالب],Table1[[#This Row],[اسم الطالب]])","v":0}]
[null,223,null,null,{"$f":"COUNTIFS(Table13[حال الحضور],\"غائب\",Table13[اسم الطالب],Table1[[#This Row],[اسم الطالب]])","v":0}]
[null,224,null,null,{"$f":"COUNTIFS(Table13[حال الحضور],\"غائب\",Table13[اسم الطالب],Table1[[#This Row],[اسم الطالب]])","v":0}]
[null,225,null,null,{"$f":"COUNTIFS(Table13[حال الحضور],\"غائب\",Table13[اسم الطالب],Table1[[#This Row],[اسم الطالب]])","v":0}]
[null,226,null,null,{"$f":"COUNTIFS(Table13[حال الحضور],\"غائب\",Table13[اسم الطالب],Table1[[#This Row],[اسم الطالب]])","v":0}]
[null,227,null,null,{"$f":"COUNTIFS(Table13[حال الحضور],\"غائب\",Table13[اسم الطالب],Table1[[#This Row],[اسم الطالب]])","v":0}]
[null,228,null,null,{"$f":"COUNTIFS(Table13[حال الحضور],\"غائب\",Table13[اسم الطالب],Table1[[#This Row],[اسم الطالب]])","v":0}]
[null,229,null,null,{"$f":"COUNTIFS(Table13[حال الحضور],\"غائب\",Table13[اسم الطالب],Table1[[#This Row],[اسم الطالب]])","v":0}]
[null,230,null,null,{"$f":"COUNTIFS(Table13[حال الحضور],\"غائب\",Table13[اسم الطالب],Table1[[#This Row],[اسم الطالب]])","v":0}]
[null,231,null,null,{"$f":"COUNTIFS(Table13[حال الحضور],\"غائب\",Table13[اسم الطالب],Table1[[#This Row],[اسم الطالب]])","v":0}]
[null,232,null,null,{"$f":"COUNTIFS(Table13[حال الحضور],\"غائب\",Table13[اسم الطالب],Table1[[#This Row],[اسم الطالب]])","v":0}]
[null,233,null,null,{"$f":"COUNTIFS(Table13[حال الحضور],\"غائب\",Table13[اسم الطالب],Table1[[#This Row],[اسم الطالب]])","v":0}]
[null,234,null,null,{"$f":"COUNTIFS(Table13[حال الحضور],\"غائب\",Table13[اسم الطالب],Table1[[#This Row],[اسم الطالب]])","v":0}]
[null,235,null,null,{"$f":"COUNTIFS(Table13[حال الحضور],\"غائب\",Table13[اسم الطالب],Table1[[#This Row],[اسم الطالب]])","v":0}]
[null,236,null,null,{"$f":"COUNTIFS(Table13[حال الحضور],\"غائب\",Table13[اسم الطالب],Table1[[#This Row],[اسم الطالب]])","v":0}]
[null,237,null,null,{"$f":"COUNTIFS(Table13[حال الحضور],\"غائب\",Table13[اسم الطالب],Table1[[#This Row],[اسم الطالب]])","v":0}]
[null,238,null,null,{"$f":"COUNTIFS(Table13[حال الحضور],\"غائب\",Table13[اسم الطالب],Table1[[#This Row],[اسم الطالب]])","v":0}]
[null,239,null,null,{"$f":"COUNTIFS(Table13[حال الحضور],\"غائب\",Table13[اسم الطالب],Table1[[#This Row],[اسم الطالب]])","v":0}]
[null,240,null,null,{"$f":"COUNTIFS(Table13[حال الحضور],\"غائب\",Table13[اسم الطالب],Table1[[#This Row],[اسم الطالب]])","v":0}]
[null,241,null,null,{"$f":"COUNTIFS(Table13[حال الحضور],\"غائب\",Table13[اسم الطالب],Table1[[#This Row],[اسم الطالب]])","v":0}]
[null,242,null,null,{"$f":"COUNTIFS(Table13[حال الحضور],\"غائب\",Table13[اسم الطالب],Table1[[#This Row],[اسم الطالب]])","v":0}]
[null,243,null,null,{"$f":"COUNTIFS(Table13[حال الحضور],\"غائب\",Table13[اسم الطالب],Table1[[#This Row],[اسم الطالب]])","v":0}]
[null,244,null,null,{"$f":"COUNTIFS(Table13[حال الحضور],\"غائب\",Table13[اسم الطالب],Table1[[#This Row],[اسم الطالب]])","v":0}]
[null,245,null,null,{"$f":"COUNTIFS(Table13[حال الحضور],\"غائب\",Table13[اسم الطالب],Table1[[#This Row],[اسم الطالب]])","v":0}]
[null,246,null,null,{"$f":"COUNTIFS(Table13[حال الحضور],\"غائب\",Table13[اسم الطالب],Table1[[#This Row],[اسم الطالب]])","v":0}]
[null,247,null,null,{"$f":"COUNTIFS(Table13[حال الحضور],\"غائب\",Table13[اسم الطالب],Table1[[#This Row],[اسم الطالب]])","v":0}]
[null,248,null,null,{"$f":"COUNTIFS(Table13[حال الحضور],\"غائب\",Table13[اسم الطالب],Table1[[#This Row],[اسم الطالب]])","v":0}]
[null,249,null,null,{"$f":"COUNTIFS(Table13[حال الحضور],\"غائب\",Table13[اسم الطالب],Table1[[#This Row],[اسم الطالب]])","v":0}]
[null,250,null,null,{"$f":"COUNTIFS(Table13[حال الحضور],\"غائب\",Table13[اسم الطالب],Table1[[#This Row],[اسم الطالب]])","v":0}]
[null,251,null,null,{"$f":"COUNTIFS(Table13[حال الحضور],\"غائب\",Table13[اسم الطالب],Table1[[#This Row],[اسم الطالب]])","v":0}]
[null,252,null,null,{"$f":"COUNTIFS(Table13[حال الحضور],\"غائب\",Table13[اسم الطالب],Table1[[#This Row],[اسم الطالب]])","v":0}]
[null,253,null,null,{"$f":"COUNTIFS(Table13[حال الحضور],\"غائب\",Table13[اسم الطالب],Table1[[#This Row],[اسم الطالب]])","v":0}]
[null,254,null,null,{"$f":"COUNTIFS(Table13[حال الحضور],\"غائب\",Table13[اسم الطالب],Table1[[#This Row],[اسم الطالب]])","v":0}]
[null,255,null,null,{"$f":"COUNTIFS(Table13[حال الحضور],\"غائب\",Table13[اسم الطالب],Table1[[#This Row],[اسم الطالب]])","v":0}]
[null,256,null,null,{"$f":"COUNTIFS(Table13[حال الحضور],\"غائب\",Table13[اسم الطالب],Table1[[#This Row],[اسم الطالب]])","v":0}]
[null,257,null,null,{"$f":"COUNTIFS(Table13[حال الحضور],\"غائب\",Table13[اسم الطالب],Table1[[#This Row],[اسم الطالب]])","v":0}]
[null,258,null,null,{"$f":"COUNTIFS(Table13[حال الحضور],\"غائب\",Table13[اسم الطالب],Table1[[#This Row],[اسم الطالب]])","v":0}]
[null,259,null,null,{"$f":"COUNTIFS(Table13[حال الحضور],\"غائب\",Table13[اسم الطالب],Table1[[#This Row],[اسم الطالب]])","v":0}]
[null,260,null,null,{"$f":"COUNTIFS(Table13[حال الحضور],\"غائب\",Table13[اسم الطالب],Table1[[#This Row],[اسم الطالب]])","v":0}]
[null,261,null,null,{"$f":"COUNTIFS(Table13[حال الحضور],\"غائب\",Table13[اسم الطالب],Table1[[#This Row],[اسم الطالب]])","v":0}]
[null,262,null,null,{"$f":"COUNTIFS(Table13[حال الحضور],\"غائب\",Table13[اسم الطالب],Table1[[#This Row],[اسم الطالب]])","v":0}]
[null,263,null,null,{"$f":"COUNTIFS(Table13[حال الحضور],\"غائب\",Table13[اسم الطالب],Table1[[#This Row],[اسم الطالب]])","v":0}]
[null,264,null,null,{"$f":"COUNTIFS(Table13[حال الحضور],\"غائب\",Table13[اسم الطالب],Table1[[#This Row],[اسم الطالب]])","v":0}]
[null,265,null,null,{"$f":"COUNTIFS(Table13[حال الحضور],\"غائب\",Table13[اسم الطالب],Table1[[#This Row],[اسم الطالب]])","v":0}]
[null,266,null,null,{"$f":"COUNTIFS(Table13[حال الحضور],\"غائب\",Table13[اسم الطالب],Table1[[#This Row],[اسم الطالب]])","v":0}]
[null,267,null,null,{"$f":"COUNTIFS(Table13[حال الحضور],\"غائب\",Table13[اسم الطالب],Table1[[#This Row],[اسم الطالب]])","v":0}]
[null,268,null,null,{"$f":"COUNTIFS(Table13[حال الحضور],\"غائب\",Table13[اسم الطالب],Table1[[#This Row],[اسم الطالب]])","v":0}]
[null,269,null,null,{"$f":"COUNTIFS(Table13[حال الحضور],\"غائب\",Table13[اسم الطالب],Table1[[#This Row],[اسم الطالب]])","v":0}]
[null,270,null,null,{"$f":"COUNTIFS(Table13[حال الحضور],\"غائب\",Table13[اسم الطالب],Table1[[#This Row],[اسم الطالب]])","v":0}]
[null,{"$f":"ROW()-6","v":271},null,null,{"$f":"COUNTIFS(Table13[حال الحضور],\"غائب\",Table13[اسم الطالب],Table1[[#This Row],[اسم الطالب]])","v":0}]
[null,272,null,null,{"$f":"COUNTIFS(Table13[حال الحضور],\"غائب\",Table13[اسم الطالب],Table1[[#This Row],[اسم الطالب]])","v":0}]
[null,273,null,null,{"$f":"COUNTIFS(Table13[حال الحضور],\"غائب\",Table13[اسم الطالب],Table1[[#This Row],[اسم الطالب]])","v":0}]
[null,274,null,null,{"$f":"COUNTIFS(Table13[حال الحضور],\"غائب\",Table13[اسم الطالب],Table1[[#This Row],[اسم الطالب]])","v":0}]
[null,275,null,null,{"$f":"COUNTIFS(Table13[حال الحضور],\"غائب\",Table13[اسم الطالب],Table1[[#This Row],[اسم الطالب]])","v":0}]
[null,276,null,null,{"$f":"COUNTIFS(Table13[حال الحضور],\"غائب\",Table13[اسم الطالب],Table1[[#This Row],[اسم الطالب]])","v":0}]
[null,277,null,null,{"$f":"COUNTIFS(Table13[حال الحضور],\"غائب\",Table13[اسم الطالب],Table1[[#This Row],[اسم الطالب]])","v":0}]
[null,278,null,null,{"$f":"COUNTIFS(Table13[حال الحضور],\"غائب\",Table13[اسم الطالب],Table1[[#This Row],[اسم الطالب]])","v":0}]
[null,279,null,null,{"$f":"COUNTIFS(Table13[حال الحضور],\"غائب\",Table13[اسم الطالب],Table1[[#This Row],[اسم الطالب]])","v":0}]
[null,280,null,null,{"$f":"COUNTIFS(Table13[حال الحضور],\"غائب\",Table13[اسم الطالب],Table1[[#This Row],[اسم الطالب]])","v":0}]
[null,281,null,null,{"$f":"COUNTIFS(Table13[حال الحضور],\"غائب\",Table13[اسم الطالب],Table1[[#This Row],[اسم الطالب]])","v":0}]
[null,282,null,null,{"$f":"COUNTIFS(Table13[حال الحضور],\"غائب\",Table13[اسم الطالب],Table1[[#This Row],[اسم الطالب]])","v":0}]
[null,283,null,null,{"$f":"COUNTIFS(Table13[حال الحضور],\"غائب\",Table13[اسم الطالب],Table1[[#This Row],[اسم الطالب]])","v":0}]
[null,284,null,null,{"$f":"COUNTIFS(Table13[حال الحضور],\"غائب\",Table13[اسم الطالب],Table1[[#This Row],[اسم الطالب]])","v":0}]
[null,285,null,null,{"$f":"COUNTIFS(Table13[حال الحضور],\"غائب\",Table13[اسم الطالب],Table1[[#This Row],[اسم الطالب]])","v":0}]
[null,286,null,null,{"$f":"COUNTIFS(Table13[حال الحضور],\"غائب\",Table13[اسم الطالب],Table1[[#This Row],[اسم الطالب]])","v":0}]
[null,287,null,null,{"$f":"COUNTIFS(Table13[حال الحضور],\"غائب\",Table13[اسم الطالب],Table1[[#This Row],[اسم الطالب]])","v":0}]
[null,288,null,null,{"$f":"COUNTIFS(Table13[حال الحضور],\"غائب\",Table13[اسم الطالب],Table1[[#This Row],[اسم الطالب]])","v":0}]
[null,289,null,null,{"$f":"COUNTIFS(Table13[حال الحضور],\"غائب\",Table13[اسم الطالب],Table1[[#This Row],[اسم الطالب]])","v":0}]
[null,290,null,null,{"$f":"COUNTIFS(Table13[حال الحضور],\"غائب\",Table13[اسم الطالب],Table1[[#This Row],[اسم الطالب]])","v":0}]
[null,291,null,null,{"$f":"COUNTIFS(Table13[حال الحضور],\"غائب\",Table13[اسم الطالب],Table1[[#This Row],[اسم الطالب]])","v":0}]
[null,292,null,null,{"$f":"COUNTIFS(Table13[حال الحضور],\"غائب\",Table13[اسم الطالب],Table1[[#This Row],[اسم الطالب]])","v":0}]
[null,293,null,null,{"$f":"COUNTIFS(Table13[حال الحضور],\"غائب\",Table13[اسم الطالب],Table1[[#This Row],[اسم الطالب]])","v":0}]
[null,294,null,null,{"$f":"COUNTIFS(Table13[حال الحضور],\"غائب\",Table13[اسم الطالب],Table1[[#This Row],[اسم الطالب]])","v":0}]
[null,295,null,null,{"$f":"COUNTIFS(Table13[حال الحضور],\"غائب\",Table13[اسم الطالب],Table1[[#This Row],[اسم الطالب]])","v":0}]
[null,296,null,null,{"$f":"COUNTIFS(Table13[حال الحضور],\"غائب\",Table13[اسم الطالب],Table1[[#This Row],[اسم الطالب]])","v":0}]
[null,297,null,null,{"$f":"COUNTIFS(Table13[حال الحضور],\"غائب\",Table13[اسم الطالب],Table1[[#This Row],[اسم الطالب]])","v":0}]
[null,298,null,null,{"$f":"COUNTIFS(Table13[حال الحضور],\"غائب\",Table13[اسم الطالب],Table1[[#This Row],[اسم الطالب]])","v":0}]
[null,299,null,null,{"$f":"COUNTIFS(Table13[حال الحضور],\"غائب\",Table13[اسم الطالب],Table1[[#This Row],[اسم الطالب]])","v":0}]
[null,300,null,null,{"$f":"COUNTIFS(Table13[حال الحضور],\"غائب\",Table13[اسم الطالب],Table1[[#This Row],[اسم الطالب]])","v":0}]
[null,301,null,null,{"$f":"COUNTIFS(Table13[حال الحضور],\"غائب\",Table13[اسم الطالب],Table1[[#This Row],[اسم الطالب]])","v":0}]
[null,302,null,null,{"$f":"COUNTIFS(Table13[حال الحضور],\"غائب\",Table13[اسم الطالب],Table1[[#This Row],[اسم الطالب]])","v":0}]
[null,303,null,null,{"$f":"COUNTIFS(Table13[حال الحضور],\"غائب\",Table13[اسم الطالب],Table1[[#This Row],[اسم الطالب]])","v":0}]
[null,304,null,null,{"$f":"COUNTIFS(Table13[حال الحضور],\"غائب\",Table13[اسم الطالب],Table1[[#This Row],[اسم الطالب]])","v":0}]
[null,305,null,null,{"$f":"COUNTIFS(Table13[حال الحضور],\"غائب\",Table13[اسم الطالب],Table1[[#This Row],[اسم الطالب]])","v":0}]
[null,306,null,null,{"$f":"COUNTIFS(Table13[حال الحضور],\"غائب\",Table13[اسم الطالب],Table1[[#This Row],[اسم الطالب]])","v":0}]
[null,307,null,null,{"$f":"COUNTIFS(Table13[حال الحضور],\"غائب\",Table13[اسم الطالب],Table1[[#This Row],[اسم الطالب]])","v":0}]
[null,308,null,null,{"$f":"COUNTIFS(Table13[حال الحضور],\"غائب\",Table13[اسم الطالب],Table1[[#This Row],[اسم الطالب]])","v":0}]
[null,309,null,null,{"$f":"COUNTIFS(Table13[حال الحضور],\"غائب\",Table13[اسم الطالب],Table1[[#This Row],[اسم الطالب]])","v":0}]
[null,310,null,null,{"$f":"COUNTIFS(Table13[حال الحضور],\"غائب\",Table13[اسم الطالب],Table1[[#This Row],[اسم الطالب]])","v":0}]
[null,311,null,null,{"$f":"COUNTIFS(Table13[حال الحضور],\"غائب\",Table13[اسم الطالب],Table1[[#This Row],[اسم الطالب]])","v":0}]
[null,312,null,null,{"$f":"COUNTIFS(Table13[حال الحضور],\"غائب\",Table13[اسم الطالب],Table1[[#This Row],[اسم الطالب]])","v":0}]
[null,313,null,null,{"$f":"COUNTIFS(Table13[حال الحضور],\"غائب\",Table13[اسم الطالب],Table1[[#This Row],[اسم الطالب]])","v":0}]
[null,314,null,null,{"$f":"COUNTIFS(Table13[حال الحضور],\"غائب\",Table13[اسم الطالب],Table1[[#This Row],[اسم الطالب]])","v":0}]
[null,315,null,null,{"$f":"COUNTIFS(Table13[حال الحضور],\"غائب\",Table13[اسم الطالب],Table1[[#This Row],[اسم الطالب]])","v":0}]
[null,316,null,null,{"$f":"COUNTIFS(Table13[حال الحضور],\"غائب\",Table13[اسم الطالب],Table1[[#This Row],[اسم الطالب]])","v":0}]
[null,317,null,null,{"$f":"COUNTIFS(Table13[حال الحضور],\"غائب\",Table13[اسم الطالب],Table1[[#This Row],[اسم الطالب]])","v":0}]
[null,318,null,null,{"$f":"COUNTIFS(Table13[حال الحضور],\"غائب\",Table13[اسم الطالب],Table1[[#This Row],[اسم الطالب]])","v":0}]
[null,319,null,null,{"$f":"COUNTIFS(Table13[حال الحضور],\"غائب\",Table13[اسم الطالب],Table1[[#This Row],[اسم الطالب]])","v":0}]
[null,320,null,null,{"$f":"COUNTIFS(Table13[حال الحضور],\"غائب\",Table13[اسم الطالب],Table1[[#This Row],[اسم الطالب]])","v":0}]
[null,321,null,null,{"$f":"COUNTIFS(Table13[حال الحضور],\"غائب\",Table13[اسم الطالب],Table1[[#This Row],[اسم الطالب]])","v":0}]
[null,322,null,null,{"$f":"COUNTIFS(Table13[حال الحضور],\"غائب\",Table13[اسم الطالب],Table1[[#This Row],[اسم الطالب]])","v":0}]
[null,323,null,null,{"$f":"COUNTIFS(Table13[حال الحضور],\"غائب\",Table13[اسم الطالب],Table1[[#This Row],[اسم الطالب]])","v":0}]
[null,324,null,null,{"$f":"COUNTIFS(Table13[حال الحضور],\"غائب\",Table13[اسم الطالب],Table1[[#This Row],[اسم الطالب]])","v":0}]
[null,325,null,null,{"$f":"COUNTIFS(Table13[حال الحضور],\"غائب\",Table13[اسم الطالب],Table1[[#This Row],[اسم الطالب]])","v":0}]
[null,326,null,null,{"$f":"COUNTIFS(Table13[حال الحضور],\"غائب\",Table13[اسم الطالب],Table1[[#This Row],[اسم الطالب]])","v":0}]
[null,327,null,null,{"$f":"COUNTIFS(Table13[حال الحضور],\"غائب\",Table13[اسم الطالب],Table1[[#This Row],[اسم الطالب]])","v":0}]
[null,328,null,null,{"$f":"COUNTIFS(Table13[حال الحضور],\"غائب\",Table13[اسم الطالب],Table1[[#This Row],[اسم الطالب]])","v":0}]
[null,329,null,null,{"$f":"COUNTIFS(Table13[حال الحضور],\"غائب\",Table13[اسم الطالب],Table1[[#This Row],[اسم الطالب]])","v":0}]
[null,330,null,null,{"$f":"COUNTIFS(Table13[حال الحضور],\"غائب\",Table13[اسم الطالب],Table1[[#This Row],[اسم الطالب]])","v":0}]
[null,331,null,null,{"$f":"COUNTIFS(Table13[حال الحضور],\"غائب\",Table13[اسم الطالب],Table1[[#This Row],[اسم الطالب]])","v":0}]
[null,332,null,null,{"$f":"COUNTIFS(Table13[حال الحضور],\"غائب\",Table13[اسم الطالب],Table1[[#This Row],[اسم الطالب]])","v":0}]
[null,333,null,null,{"$f":"COUNTIFS(Table13[حال الحضور],\"غائب\",Table13[اسم الطالب],Table1[[#This Row],[اسم الطالب]])","v":0}]
[null,334,null,null,{"$f":"COUNTIFS(Table13[حال الحضور],\"غائب\",Table13[اسم الطالب],Table1[[#This Row],[اسم الطالب]])","v":0}]
[null,{"$f":"ROW()-6","v":335},null,null,{"$f":"COUNTIFS(Table13[حال الحضور],\"غائب\",Table13[اسم الطالب],Table1[[#This Row],[اسم الطالب]])","v":0}]
[null,336,null,null,{"$f":"COUNTIFS(Table13[حال الحضور],\"غائب\",Table13[اسم الطالب],Table1[[#This Row],[اسم الطالب]])","v":0}]
[null,337,null,null,{"$f":"COUNTIFS(Table13[حال الحضور],\"غائب\",Table13[اسم الطالب],Table1[[#This Row],[اسم الطالب]])","v":0}]
[null,338,null,null,{"$f":"COUNTIFS(Table13[حال الحضور],\"غائب\",Table13[اسم الطالب],Table1[[#This Row],[اسم الطالب]])","v":0}]
[null,339,null,null,{"$f":"COUNTIFS(Table13[حال الحضور],\"غائب\",Table13[اسم الطالب],Table1[[#This Row],[اسم الطالب]])","v":0}]
[null,340,null,null,{"$f":"COUNTIFS(Table13[حال الحضور],\"غائب\",Table13[اسم الطالب],Table1[[#This Row],[اسم الطالب]])","v":0}]
[null,341,null,null,{"$f":"COUNTIFS(Table13[حال الحضور],\"غائب\",Table13[اسم الطالب],Table1[[#This Row],[اسم الطالب]])","v":0}]
[null,342,null,null,{"$f":"COUNTIFS(Table13[حال الحضور],\"غائب\",Table13[اسم الطالب],Table1[[#This Row],[اسم الطالب]])","v":0}]
[null,343,null,null,{"$f":"COUNTIFS(Table13[حال الحضور],\"غائب\",Table13[اسم الطالب],Table1[[#This Row],[اسم الطالب]])","v":0}]
[null,344,null,null,{"$f":"COUNTIFS(Table13[حال الحضور],\"غائب\",Table13[اسم الطالب],Table1[[#This Row],[اسم الطالب]])","v":0}]
[null,345,null,null,{"$f":"COUNTIFS(Table13[حال الحضور],\"غائب\",Table13[اسم الطالب],Table1[[#This Row],[اسم الطالب]])","v":0}]
[null,346,null,null,{"$f":"COUNTIFS(Table13[حال الحضور],\"غائب\",Table13[اسم الطالب],Table1[[#This Row],[اسم الطالب]])","v":0}]
[null,347,null,null,{"$f":"COUNTIFS(Table13[حال الحضور],\"غائب\",Table13[اسم الطالب],Table1[[#This Row],[اسم الطالب]])","v":0}]
[null,348,null,null,{"$f":"COUNTIFS(Table13[حال الحضور],\"غائب\",Table13[اسم الطالب],Table1[[#This Row],[اسم الطالب]])","v":0}]
[null,349,null,null,{"$f":"COUNTIFS(Table13[حال الحضور],\"غائب\",Table13[اسم الطالب],Table1[[#This Row],[اسم الطالب]])","v":0}]
[null,350,null,null,{"$f":"COUNTIFS(Table13[حال الحضور],\"غائب\",Table13[اسم الطالب],Table1[[#This Row],[اسم الطالب]])","v":0}]
[null,351,null,null,{"$f":"COUNTIFS(Table13[حال الحضور],\"غائب\",Table13[اسم الطالب],Table1[[#This Row],[اسم الطالب]])","v":0}]
[null,352,null,null,{"$f":"COUNTIFS(Table13[حال الحضور],\"غائب\",Table13[اسم الطالب],Table1[[#This Row],[اسم الطالب]])","v":0}]
[null,353,null,null,{"$f":"COUNTIFS(Table13[حال الحضور],\"غائب\",Table13[اسم الطالب],Table1[[#This Row],[اسم الطالب]])","v":0}]
[null,354,null,null,{"$f":"COUNTIFS(Table13[حال الحضور],\"غائب\",Table13[اسم الطالب],Table1[[#This Row],[اسم الطالب]])","v":0}]
[null,355,null,null,{"$f":"COUNTIFS(Table13[حال الحضور],\"غائب\",Table13[اسم الطالب],Table1[[#This Row],[اسم الطالب]])","v":0}]
[null,356,null,null,{"$f":"COUNTIFS(Table13[حال الحضور],\"غائب\",Table13[اسم الطالب],Table1[[#This Row],[اسم الطالب]])","v":0}]
[null,357,null,null,{"$f":"COUNTIFS(Table13[حال الحضور],\"غائب\",Table13[اسم الطالب],Table1[[#This Row],[اسم الطالب]])","v":0}]
[null,358,null,null,{"$f":"COUNTIFS(Table13[حال الحضور],\"غائب\",Table13[اسم الطالب],Table1[[#This Row],[اسم الطالب]])","v":0}]
[null,359,null,null,{"$f":"COUNTIFS(Table13[حال الحضور],\"غائب\",Table13[اسم الطالب],Table1[[#This Row],[اسم الطالب]])","v":0}]
[null,360,null,null,{"$f":"COUNTIFS(Table13[حال الحضور],\"غائب\",Table13[اسم الطالب],Table1[[#This Row],[اسم الطالب]])","v":0}]
[null,361,null,null,{"$f":"COUNTIFS(Table13[حال الحضور],\"غائب\",Table13[اسم الطالب],Table1[[#This Row],[اسم الطالب]])","v":0}]
[null,362,null,null,{"$f":"COUNTIFS(Table13[حال الحضور],\"غائب\",Table13[اسم الطالب],Table1[[#This Row],[اسم الطالب]])","v":0}]
[null,363,null,null,{"$f":"COUNTIFS(Table13[حال الحضور],\"غائب\",Table13[اسم الطالب],Table1[[#This Row],[اسم الطالب]])","v":0}]
[null,364,null,null,{"$f":"COUNTIFS(Table13[حال الحضور],\"غائب\",Table13[اسم الطالب],Table1[[#This Row],[اسم الطالب]])","v":0}]
[null,365,null,null,{"$f":"COUNTIFS(Table13[حال الحضور],\"غائب\",Table13[اسم الطالب],Table1[[#This Row],[اسم الطالب]])","v":0}]
[null,366,null,null,{"$f":"COUNTIFS(Table13[حال الحضور],\"غائب\",Table13[اسم الطالب],Table1[[#This Row],[اسم الطالب]])","v":0}]
[null,367,null,null,{"$f":"COUNTIFS(Table13[حال الحضور],\"غائب\",Table13[اسم الطالب],Table1[[#This Row],[اسم الطالب]])","v":0}]
[null,368,null,null,{"$f":"COUNTIFS(Table13[حال الحضور],\"غائب\",Table13[اسم الطالب],Table1[[#This Row],[اسم الطالب]])","v":0}]
[null,369,null,null,{"$f":"COUNTIFS(Table13[حال الحضور],\"غائب\",Table13[اسم الطالب],Table1[[#This Row],[اسم الطالب]])","v":0}]
[null,370,null,null,{"$f":"COUNTIFS(Table13[حال الحضور],\"غائب\",Table13[اسم الطالب],Table1[[#This Row],[اسم الطالب]])","v":0}]
[null,371,null,null,{"$f":"COUNTIFS(Table13[حال الحضور],\"غائب\",Table13[اسم الطالب],Table1[[#This Row],[اسم الطالب]])","v":0}]
[null,372,null,null,{"$f":"COUNTIFS(Table13[حال الحضور],\"غائب\",Table13[اسم الطالب],Table1[[#This Row],[اسم الطالب]])","v":0}]
[null,373,null,null,{"$f":"COUNTIFS(Table13[حال الحضور],\"غائب\",Table13[اسم الطالب],Table1[[#This Row],[اسم الطالب]])","v":0}]
[null,374,null,null,{"$f":"COUNTIFS(Table13[حال الحضور],\"غائب\",Table13[اسم الطالب],Table1[[#This Row],[اسم الطالب]])","v":0}]
[null,375,null,null,{"$f":"COUNTIFS(Table13[حال الحضور],\"غائب\",Table13[اسم الطالب],Table1[[#This Row],[اسم الطالب]])","v":0}]
[null,376,null,null,{"$f":"COUNTIFS(Table13[حال الحضور],\"غائب\",Table13[اسم الطالب],Table1[[#This Row],[اسم الطالب]])","v":0}]
[null,377,null,null,{"$f":"COUNTIFS(Table13[حال الحضور],\"غائب\",Table13[اسم الطالب],Table1[[#This Row],[اسم الطالب]])","v":0}]
[null,378,null,null,{"$f":"COUNTIFS(Table13[حال الحضور],\"غائب\",Table13[اسم الطالب],Table1[[#This Row],[اسم الطالب]])","v":0}]
[null,379,null,null,{"$f":"COUNTIFS(Table13[حال الحضور],\"غائب\",Table13[اسم الطالب],Table1[[#This Row],[اسم الطالب]])","v":0}]
[null,380,null,null,{"$f":"COUNTIFS(Table13[حال الحضور],\"غائب\",Table13[اسم الطالب],Table1[[#This Row],[اسم الطالب]])","v":0}]
[null,381,null,null,{"$f":"COUNTIFS(Table13[حال الحضور],\"غائب\",Table13[اسم الطالب],Table1[[#This Row],[اسم الطالب]])","v":0}]
[null,382,null,null,{"$f":"COUNTIFS(Table13[حال الحضور],\"غائب\",Table13[اسم الطالب],Table1[[#This Row],[اسم الطالب]])","v":0}]
[null,383,null,null,{"$f":"COUNTIFS(Table13[حال الحضور],\"غائب\",Table13[اسم الطالب],Table1[[#This Row],[اسم الطالب]])","v":0}]
[null,384,null,null,{"$f":"COUNTIFS(Table13[حال الحضور],\"غائب\",Table13[اسم الطالب],Table1[[#This Row],[اسم الطالب]])","v":0}]
[null,385,null,null,{"$f":"COUNTIFS(Table13[حال الحضور],\"غائب\",Table13[اسم الطالب],Table1[[#This Row],[اسم الطالب]])","v":0}]
[null,386,null,null,{"$f":"COUNTIFS(Table13[حال الحضور],\"غائب\",Table13[اسم الطالب],Table1[[#This Row],[اسم الطالب]])","v":0}]
[null,387,null,null,{"$f":"COUNTIFS(Table13[حال الحضور],\"غائب\",Table13[اسم الطالب],Table1[[#This Row],[اسم الطالب]])","v":0}]
[null,388,null,null,{"$f":"COUNTIFS(Table13[حال الحضور],\"غائب\",Table13[اسم الطالب],Table1[[#This Row],[اسم الطالب]])","v":0}]
[null,389,null,null,{"$f":"COUNTIFS(Table13[حال الحضور],\"غائب\",Table13[اسم الطالب],Table1[[#This Row],[اسم الطالب]])","v":0}]
[null,390,null,null,{"$f":"COUNTIFS(Table13[حال الحضور],\"غائب\",Table13[اسم الطالب],Table1[[#This Row],[اسم الطالب]])","v":0}]
[null,391,null,null,{"$f":"COUNTIFS(Table13[حال الحضور],\"غائب\",Table13[اسم الطالب],Table1[[#This Row],[اسم الطالب]])","v":0}]
[null,392,null,null,{"$f":"COUNTIFS(Table13[حال الحضور],\"غائب\",Table13[اسم الطالب],Table1[[#This Row],[اسم الطالب]])","v":0}]
[null,393,null,null,{"$f":"COUNTIFS(Table13[حال الحضور],\"غائب\",Table13[اسم الطالب],Table1[[#This Row],[اسم الطالب]])","v":0}]
[null,394,null,null,{"$f":"COUNTIFS(Table13[حال الحضور],\"غائب\",Table13[اسم الطالب],Table1[[#This Row],[اسم الطالب]])","v":0}]
[null,395,null,null,{"$f":"COUNTIFS(Table13[حال الحضور],\"غائب\",Table13[اسم الطالب],Table1[[#This Row],[اسم الطالب]])","v":0}]
[null,396,null,null,{"$f":"COUNTIFS(Table13[حال الحضور],\"غائب\",Table13[اسم الطالب],Table1[[#This Row],[اسم الطالب]])","v":0}]
[null,397,null,null,{"$f":"COUNTIFS(Table13[حال الحضور],\"غائب\",Table13[اسم الطالب],Table1[[#This Row],[اسم الطالب]])","v":0}]
[null,398,null,null,{"$f":"COUNTIFS(Table13[حال الحضور],\"غائب\",Table13[اسم الطالب],Table1[[#This Row],[اسم الطالب]])","v":0}]
[null,{"$f":"ROW()-6","v":399},null,null,{"$f":"COUNTIFS(Table13[حال الحضور],\"غائب\",Table13[اسم الطالب],Table1[[#This Row],[اسم الطالب]])","v":0}]
[null,400,null,null,{"$f":"COUNTIFS(Table13[حال الحضور],\"غائب\",Table13[اسم الطالب],Table1[[#This Row],[اسم الطالب]])","v":0}]
[null,401,null,null,{"$f":"COUNTIFS(Table13[حال الحضور],\"غائب\",Table13[اسم الطالب],Table1[[#This Row],[اسم الطالب]])","v":0}]
[null,402,null,null,{"$f":"COUNTIFS(Table13[حال الحضور],\"غائب\",Table13[اسم الطالب],Table1[[#This Row],[اسم الطالب]])","v":0}]
[null,403,null,null,{"$f":"COUNTIFS(Table13[حال الحضور],\"غائب\",Table13[اسم الطالب],Table1[[#This Row],[اسم الطالب]])","v":0}]
[null,404,null,null,{"$f":"COUNTIFS(Table13[حال الحضور],\"غائب\",Table13[اسم الطالب],Table1[[#This Row],[اسم الطالب]])","v":0}]
[null,405,null,null,{"$f":"COUNTIFS(Table13[حال الحضور],\"غائب\",Table13[اسم الطالب],Table1[[#This Row],[اسم الطالب]])","v":0}]
[null,406,null,null,{"$f":"COUNTIFS(Table13[حال الحضور],\"غائب\",Table13[اسم الطالب],Table1[[#This Row],[اسم الطالب]])","v":0}]
[null,407,null,null,{"$f":"COUNTIFS(Table13[حال الحضور],\"غائب\",Table13[اسم الطالب],Table1[[#This Row],[اسم الطالب]])","v":0}]
[null,408,null,null,{"$f":"COUNTIFS(Table13[حال الحضور],\"غائب\",Table13[اسم الطالب],Table1[[#This Row],[اسم الطالب]])","v":0}]
[null,409,null,null,{"$f":"COUNTIFS(Table13[حال الحضور],\"غائب\",Table13[اسم الطالب],Table1[[#This Row],[اسم الطالب]])","v":0}]
[null,410,null,null,{"$f":"COUNTIFS(Table13[حال الحضور],\"غائب\",Table13[اسم الطالب],Table1[[#This Row],[اسم الطالب]])","v":0}]
[null,411,null,null,{"$f":"COUNTIFS(Table13[حال الحضور],\"غائب\",Table13[اسم الطالب],Table1[[#This Row],[اسم الطالب]])","v":0}]
[null,412,null,null,{"$f":"COUNTIFS(Table13[حال الحضور],\"غائب\",Table13[اسم الطالب],Table1[[#This Row],[اسم الطالب]])","v":0}]
[null,413,null,null,{"$f":"COUNTIFS(Table13[حال الحضور],\"غائب\",Table13[اسم الطالب],Table1[[#This Row],[اسم الطالب]])","v":0}]
[null,414,null,null,{"$f":"COUNTIFS(Table13[حال الحضور],\"غائب\",Table13[اسم الطالب],Table1[[#This Row],[اسم الطالب]])","v":0}]
[null,415,null,null,{"$f":"COUNTIFS(Table13[حال الحضور],\"غائب\",Table13[اسم الطالب],Table1[[#This Row],[اسم الطالب]])","v":0}]
[null,416,null,null,{"$f":"COUNTIFS(Table13[حال الحضور],\"غائب\",Table13[اسم الطالب],Table1[[#This Row],[اسم الطالب]])","v":0}]
[null,417,null,null,{"$f":"COUNTIFS(Table13[حال الحضور],\"غائب\",Table13[اسم الطالب],Table1[[#This Row],[اسم الطالب]])","v":0}]
[null,418,null,null,{"$f":"COUNTIFS(Table13[حال الحضور],\"غائب\",Table13[اسم الطالب],Table1[[#This Row],[اسم الطالب]])","v":0}]
[null,419,null,null,{"$f":"COUNTIFS(Table13[حال الحضور],\"غائب\",Table13[اسم الطالب],Table1[[#This Row],[اسم الطالب]])","v":0}]
[null,420,null,null,{"$f":"COUNTIFS(Table13[حال الحضور],\"غائب\",Table13[اسم الطالب],Table1[[#This Row],[اسم الطالب]])","v":0}]
[null,421,null,null,{"$f":"COUNTIFS(Table13[حال الحضور],\"غائب\",Table13[اسم الطالب],Table1[[#This Row],[اسم الطالب]])","v":0}]
[null,422,null,null,{"$f":"COUNTIFS(Table13[حال الحضور],\"غائب\",Table13[اسم الطالب],Table1[[#This Row],[اسم الطالب]])","v":0}]
[null,423,null,null,{"$f":"COUNTIFS(Table13[حال الحضور],\"غائب\",Table13[اسم الطالب],Table1[[#This Row],[اسم الطالب]])","v":0}]
[null,424,null,null,{"$f":"COUNTIFS(Table13[حال الحضور],\"غائب\",Table13[اسم الطالب],Table1[[#This Row],[اسم الطالب]])","v":0}]
[null,425,null,null,{"$f":"COUNTIFS(Table13[حال الحضور],\"غائب\",Table13[اسم الطالب],Table1[[#This Row],[اسم الطالب]])","v":0}]
[null,426,null,null,{"$f":"COUNTIFS(Table13[حال الحضور],\"غائب\",Table13[اسم الطالب],Table1[[#This Row],[اسم الطالب]])","v":0}]
[null,427,null,null,{"$f":"COUNTIFS(Table13[حال الحضور],\"غائب\",Table13[اسم الطالب],Table1[[#This Row],[اسم الطالب]])","v":0}]
[null,428,null,null,{"$f":"COUNTIFS(Table13[حال الحضور],\"غائب\",Table13[اسم الطالب],Table1[[#This Row],[اسم الطالب]])","v":0}]
[null,429,null,null,{"$f":"COUNTIFS(Table13[حال الحضور],\"غائب\",Table13[اسم الطالب],Table1[[#This Row],[اسم الطالب]])","v":0}]
[null,430,null,null,{"$f":"COUNTIFS(Table13[حال الحضور],\"غائب\",Table13[اسم الطالب],Table1[[#This Row],[اسم الطالب]])","v":0}]
[null,431,null,null,{"$f":"COUNTIFS(Table13[حال الحضور],\"غائب\",Table13[اسم الطالب],Table1[[#This Row],[اسم الطالب]])","v":0}]
[null,432,null,null,{"$f":"COUNTIFS(Table13[حال الحضور],\"غائب\",Table13[اسم الطالب],Table1[[#This Row],[اسم الطالب]])","v":0}]
[null,433,null,null,{"$f":"COUNTIFS(Table13[حال الحضور],\"غائب\",Table13[اسم الطالب],Table1[[#This Row],[اسم الطالب]])","v":0}]
[null,434,null,null,{"$f":"COUNTIFS(Table13[حال الحضور],\"غائب\",Table13[اسم الطالب],Table1[[#This Row],[اسم الطالب]])","v":0}]
[null,435,null,null,{"$f":"COUNTIFS(Table13[حال الحضور],\"غائب\",Table13[اسم الطالب],Table1[[#This Row],[اسم الطالب]])","v":0}]
[null,436,null,null,{"$f":"COUNTIFS(Table13[حال الحضور],\"غائب\",Table13[اسم الطالب],Table1[[#This Row],[اسم الطالب]])","v":0}]
[null,437,null,null,{"$f":"COUNTIFS(Table13[حال الحضور],\"غائب\",Table13[اسم الطالب],Table1[[#This Row],[اسم الطالب]])","v":0}]
[null,438,null,null,{"$f":"COUNTIFS(Table13[حال الحضور],\"غائب\",Table13[اسم الطالب],Table1[[#This Row],[اسم الطالب]])","v":0}]
[null,439,null,null,{"$f":"COUNTIFS(Table13[حال الحضور],\"غائب\",Table13[اسم الطالب],Table1[[#This Row],[اسم الطالب]])","v":0}]
[null,440,null,null,{"$f":"COUNTIFS(Table13[حال الحضور],\"غائب\",Table13[اسم الطالب],Table1[[#This Row],[اسم الطالب]])","v":0}]
[null,441,null,null,{"$f":"COUNTIFS(Table13[حال الحضور],\"غائب\",Table13[اسم الطالب],Table1[[#This Row],[اسم الطالب]])","v":0}]
[null,442,null,null,{"$f":"COUNTIFS(Table13[حال الحضور],\"غائب\",Table13[اسم الطالب],Table1[[#This Row],[اسم الطالب]])","v":0}]
[null,443,null,null,{"$f":"COUNTIFS(Table13[حال الحضور],\"غائب\",Table13[اسم الطالب],Table1[[#This Row],[اسم الطالب]])","v":0}]
[null,444,null,null,{"$f":"COUNTIFS(Table13[حال الحضور],\"غائب\",Table13[اسم الطالب],Table1[[#This Row],[اسم الطالب]])","v":0}]
[null,445,null,null,{"$f":"COUNTIFS(Table13[حال الحضور],\"غائب\",Table13[اسم الطالب],Table1[[#This Row],[اسم الطالب]])","v":0}]
[null,446,null,null,{"$f":"COUNTIFS(Table13[حال الحضور],\"غائب\",Table13[اسم الطالب],Table1[[#This Row],[اسم الطالب]])","v":0}]
[null,447,null,null,{"$f":"COUNTIFS(Table13[حال الحضور],\"غائب\",Table13[اسم الطالب],Table1[[#This Row],[اسم الطالب]])","v":0}]
[null,448,null,null,{"$f":"COUNTIFS(Table13[حال الحضور],\"غائب\",Table13[اسم الطالب],Table1[[#This Row],[اسم الطالب]])","v":0}]
[null,449,null,null,{"$f":"COUNTIFS(Table13[حال الحضور],\"غائب\",Table13[اسم الطالب],Table1[[#This Row],[اسم الطالب]])","v":0}]
[null,450,null,null,{"$f":"COUNTIFS(Table13[حال الحضور],\"غائب\",Table13[اسم الطالب],Table1[[#This Row],[اسم الطالب]])","v":0}]
[null,451,null,null,{"$f":"COUNTIFS(Table13[حال الحضور],\"غائب\",Table13[اسم الطالب],Table1[[#This Row],[اسم الطالب]])","v":0}]
[null,452,null,null,{"$f":"COUNTIFS(Table13[حال الحضور],\"غائب\",Table13[اسم الطالب],Table1[[#This Row],[اسم الطالب]])","v":0}]
[null,453,null,null,{"$f":"COUNTIFS(Table13[حال الحضور],\"غائب\",Table13[اسم الطالب],Table1[[#This Row],[اسم الطالب]])","v":0}]
[null,454,null,null,{"$f":"COUNTIFS(Table13[حال الحضور],\"غائب\",Table13[اسم الطالب],Table1[[#This Row],[اسم الطالب]])","v":0}]
[null,455,null,null,{"$f":"COUNTIFS(Table13[حال الحضور],\"غائب\",Table13[اسم الطالب],Table1[[#This Row],[اسم الطالب]])","v":0}]
[null,456,null,null,{"$f":"COUNTIFS(Table13[حال الحضور],\"غائب\",Table13[اسم الطالب],Table1[[#This Row],[اسم الطالب]])","v":0}]
[null,457,null,null,{"$f":"COUNTIFS(Table13[حال الحضور],\"غائب\",Table13[اسم الطالب],Table1[[#This Row],[اسم الطالب]])","v":0}]
[null,458,null,null,{"$f":"COUNTIFS(Table13[حال الحضور],\"غائب\",Table13[اسم الطالب],Table1[[#This Row],[اسم الطالب]])","v":0}]
[null,459,null,null,{"$f":"COUNTIFS(Table13[حال الحضور],\"غائب\",Table13[اسم الطالب],Table1[[#This Row],[اسم الطالب]])","v":0}]
[null,460,null,null,{"$f":"COUNTIFS(Table13[حال الحضور],\"غائب\",Table13[اسم الطالب],Table1[[#This Row],[اسم الطالب]])","v":0}]
[null,461,null,null,{"$f":"COUNTIFS(Table13[حال الحضور],\"غائب\",Table13[اسم الطالب],Table1[[#This Row],[اسم الطالب]])","v":0}]
[null,462,null,null,{"$f":"COUNTIFS(Table13[حال الحضور],\"غائب\",Table13[اسم الطالب],Table1[[#This Row],[اسم الطالب]])","v":0}]
[null,{"$f":"ROW()-6","v":463},null,null,{"$f":"COUNTIFS(Table13[حال الحضور],\"غائب\",Table13[اسم الطالب],Table1[[#This Row],[اسم الطالب]])","v":0}]
[null,464,null,null,{"$f":"COUNTIFS(Table13[حال الحضور],\"غائب\",Table13[اسم الطالب],Table1[[#This Row],[اسم الطالب]])","v":0}]
[null,465,null,null,{"$f":"COUNTIFS(Table13[حال الحضور],\"غائب\",Table13[اسم الطالب],Table1[[#This Row],[اسم الطالب]])","v":0}]
[null,466,null,null,{"$f":"COUNTIFS(Table13[حال الحضور],\"غائب\",Table13[اسم الطالب],Table1[[#This Row],[اسم الطالب]])","v":0}]
[null,467,null,null,{"$f":"COUNTIFS(Table13[حال الحضور],\"غائب\",Table13[اسم الطالب],Table1[[#This Row],[اسم الطالب]])","v":0}]
[null,468,null,null,{"$f":"COUNTIFS(Table13[حال الحضور],\"غائب\",Table13[اسم الطالب],Table1[[#This Row],[اسم الطالب]])","v":0}]
[null,469,null,null,{"$f":"COUNTIFS(Table13[حال الحضور],\"غائب\",Table13[اسم الطالب],Table1[[#This Row],[اسم الطالب]])","v":0}]
[null,470,null,null,{"$f":"COUNTIFS(Table13[حال الحضور],\"غائب\",Table13[اسم الطالب],Table1[[#This Row],[اسم الطالب]])","v":0}]
[null,471,null,null,{"$f":"COUNTIFS(Table13[حال الحضور],\"غائب\",Table13[اسم الطالب],Table1[[#This Row],[اسم الطالب]])","v":0}]
[null,472,null,null,{"$f":"COUNTIFS(Table13[حال الحضور],\"غائب\",Table13[اسم الطالب],Table1[[#This Row],[اسم الطالب]])","v":0}]
[null,473,null,null,{"$f":"COUNTIFS(Table13[حال الحضور],\"غائب\",Table13[اسم الطالب],Table1[[#This Row],[اسم الطالب]])","v":0}]
[null,474,null,null,{"$f":"COUNTIFS(Table13[حال الحضور],\"غائب\",Table13[اسم الطالب],Table1[[#This Row],[اسم الطالب]])","v":0}]
[null,475,null,null,{"$f":"COUNTIFS(Table13[حال الحضور],\"غائب\",Table13[اسم الطالب],Table1[[#This Row],[اسم الطالب]])","v":0}]
[null,476,null,null,{"$f":"COUNTIFS(Table13[حال الحضور],\"غائب\",Table13[اسم الطالب],Table1[[#This Row],[اسم الطالب]])","v":0}]
[null,477,null,null,{"$f":"COUNTIFS(Table13[حال الحضور],\"غائب\",Table13[اسم الطالب],Table1[[#This Row],[اسم الطالب]])","v":0}]
[null,478,null,null,{"$f":"COUNTIFS(Table13[حال الحضور],\"غائب\",Table13[اسم الطالب],Table1[[#This Row],[اسم الطالب]])","v":0}]
[null,479,null,null,{"$f":"COUNTIFS(Table13[حال الحضور],\"غائب\",Table13[اسم الطالب],Table1[[#This Row],[اسم الطالب]])","v":0}]
[null,480,null,null,{"$f":"COUNTIFS(Table13[حال الحضور],\"غائب\",Table13[اسم الطالب],Table1[[#This Row],[اسم الطالب]])","v":0}]
[null,481,null,null,{"$f":"COUNTIFS(Table13[حال الحضور],\"غائب\",Table13[اسم الطالب],Table1[[#This Row],[اسم الطالب]])","v":0}]
[null,482,null,null,{"$f":"COUNTIFS(Table13[حال الحضور],\"غائب\",Table13[اسم الطالب],Table1[[#This Row],[اسم الطالب]])","v":0}]
[null,483,null,null,{"$f":"COUNTIFS(Table13[حال الحضور],\"غائب\",Table13[اسم الطالب],Table1[[#This Row],[اسم الطالب]])","v":0}]
[null,484,null,null,{"$f":"COUNTIFS(Table13[حال الحضور],\"غائب\",Table13[اسم الطالب],Table1[[#This Row],[اسم الطالب]])","v":0}]
[null,485,null,null,{"$f":"COUNTIFS(Table13[حال الحضور],\"غائب\",Table13[اسم الطالب],Table1[[#This Row],[اسم الطالب]])","v":0}]
[null,486,null,null,{"$f":"COUNTIFS(Table13[حال الحضور],\"غائب\",Table13[اسم الطالب],Table1[[#This Row],[اسم الطالب]])","v":0}]
[null,487,null,null,{"$f":"COUNTIFS(Table13[حال الحضور],\"غائب\",Table13[اسم الطالب],Table1[[#This Row],[اسم الطالب]])","v":0}]
[null,488,null,null,{"$f":"COUNTIFS(Table13[حال الحضور],\"غائب\",Table13[اسم الطالب],Table1[[#This Row],[اسم الطالب]])","v":0}]
[null,489,null,null,{"$f":"COUNTIFS(Table13[حال الحضور],\"غائب\",Table13[اسم الطالب],Table1[[#This Row],[اسم الطالب]])","v":0}]
[null,490,null,null,{"$f":"COUNTIFS(Table13[حال الحضور],\"غائب\",Table13[اسم الطالب],Table1[[#This Row],[اسم الطالب]])","v":0}]
[null,491,null,null,{"$f":"COUNTIFS(Table13[حال الحضور],\"غائب\",Table13[اسم الطالب],Table1[[#This Row],[اسم الطالب]])","v":0}]
[null,492,null,null,{"$f":"COUNTIFS(Table13[حال الحضور],\"غائب\",Table13[اسم الطالب],Table1[[#This Row],[اسم الطالب]])","v":0}]
[null,493,null,null,{"$f":"COUNTIFS(Table13[حال الحضور],\"غائب\",Table13[اسم الطالب],Table1[[#This Row],[اسم الطالب]])","v":0}]
[null,494,null,null,{"$f":"COUNTIFS(Table13[حال الحضور],\"غائب\",Table13[اسم الطالب],Table1[[#This Row],[اسم الطالب]])","v":0}]
[null,495,null,null,{"$f":"COUNTIFS(Table13[حال الحضور],\"غائب\",Table13[اسم الطالب],Table1[[#This Row],[اسم الطالب]])","v":0}]
[null,496,null,null,{"$f":"COUNTIFS(Table13[حال الحضور],\"غائب\",Table13[اسم الطالب],Table1[[#This Row],[اسم الطالب]])","v":0}]
[null,497,null,null,{"$f":"COUNTIFS(Table13[حال الحضور],\"غائب\",Table13[اسم الطالب],Table1[[#This Row],[اسم الطالب]])","v":0}]
[null,498,null,null,{"$f":"COUNTIFS(Table13[حال الحضور],\"غائب\",Table13[اسم الطالب],Table1[[#This Row],[اسم الطالب]])","v":0}]
[null,499,null,null,{"$f":"COUNTIFS(Table13[حال الحضور],\"غائب\",Table13[اسم الطالب],Table1[[#This Row],[اسم الطالب]])","v":0}]
[null,500,null,null,{"$f":"COUNTIFS(Table13[حال الحضور],\"غائب\",Table13[اسم الطالب],Table1[[#This Row],[اسم الطالب]])","v":0}]
[null,501,null,null,{"$f":"COUNTIFS(Table13[حال الحضور],\"غائب\",Table13[اسم الطالب],Table1[[#This Row],[اسم الطالب]])","v":0}]
[null,502,null,null,{"$f":"COUNTIFS(Table13[حال الحضور],\"غائب\",Table13[اسم الطالب],Table1[[#This Row],[اسم الطالب]])","v":0}]
[null,503,null,null,{"$f":"COUNTIFS(Table13[حال الحضور],\"غائب\",Table13[اسم الطالب],Table1[[#This Row],[اسم الطالب]])","v":0}]
[null,504,null,null,{"$f":"COUNTIFS(Table13[حال الحضور],\"غائب\",Table13[اسم الطالب],Table1[[#This Row],[اسم الطالب]])","v":0}]
[null,505,null,null,{"$f":"COUNTIFS(Table13[حال الحضور],\"غائب\",Table13[اسم الطالب],Table1[[#This Row],[اسم الطالب]])","v":0}]
[null,506,null,null,{"$f":"COUNTIFS(Table13[حال الحضور],\"غائب\",Table13[اسم الطالب],Table1[[#This Row],[اسم الطالب]])","v":0}]
[null,507,null,null,{"$f":"COUNTIFS(Table13[حال الحضور],\"غائب\",Table13[اسم الطالب],Table1[[#This Row],[اسم الطالب]])","v":0}]
[null,508,null,null,{"$f":"COUNTIFS(Table13[حال الحضور],\"غائب\",Table13[اسم الطالب],Table1[[#This Row],[اسم الطالب]])","v":0}]
[null,509,null,null,{"$f":"COUNTIFS(Table13[حال الحضور],\"غائب\",Table13[اسم الطالب],Table1[[#This Row],[اسم الطالب]])","v":0}]
[null,510,null,null,{"$f":"COUNTIFS(Table13[حال الحضور],\"غائب\",Table13[اسم الطالب],Table1[[#This Row],[اسم الطالب]])","v":0}]
[null,511,null,null,{"$f":"COUNTIFS(Table13[حال الحضور],\"غائب\",Table13[اسم الطالب],Table1[[#This Row],[اسم الطالب]])","v":0}]
[null,512,null,null,{"$f":"COUNTIFS(Table13[حال الحضور],\"غائب\",Table13[اسم الطالب],Table1[[#This Row],[اسم الطالب]])","v":0}]
[null,513,null,null,{"$f":"COUNTIFS(Table13[حال الحضور],\"غائب\",Table13[اسم الطالب],Table1[[#This Row],[اسم الطالب]])","v":0}]
[null,514,null,null,{"$f":"COUNTIFS(Table13[حال الحضور],\"غائب\",Table13[اسم الطالب],Table1[[#This Row],[اسم الطالب]])","v":0}]
[null,515,null,null,{"$f":"COUNTIFS(Table13[حال الحضور],\"غائب\",Table13[اسم الطالب],Table1[[#This Row],[اسم الطالب]])","v":0}]
[null,516,null,null,{"$f":"COUNTIFS(Table13[حال الحضور],\"غائب\",Table13[اسم الطالب],Table1[[#This Row],[اسم الطالب]])","v":0}]
[null,517,null,null,{"$f":"COUNTIFS(Table13[حال الحضور],\"غائب\",Table13[اسم الطالب],Table1[[#This Row],[اسم الطالب]])","v":0}]
[null,518,null,null,{"$f":"COUNTIFS(Table13[حال الحضور],\"غائب\",Table13[اسم الطالب],Table1[[#This Row],[اسم الطالب]])","v":0}]
[null,519,null,null,{"$f":"COUNTIFS(Table13[حال الحضور],\"غائب\",Table13[اسم الطالب],Table1[[#This Row],[اسم الطالب]])","v":0}]
[null,520,null,null,{"$f":"COUNTIFS(Table13[حال الحضور],\"غائب\",Table13[اسم الطالب],Table1[[#This Row],[اسم الطالب]])","v":0}]
[null,521,null,null,{"$f":"COUNTIFS(Table13[حال الحضور],\"غائب\",Table13[اسم الطالب],Table1[[#This Row],[اسم الطالب]])","v":0}]
[null,522,null,null,{"$f":"COUNTIFS(Table13[حال الحضور],\"غائب\",Table13[اسم الطالب],Table1[[#This Row],[اسم الطالب]])","v":0}]
[null,523,null,null,{"$f":"COUNTIFS(Table13[حال الحضور],\"غائب\",Table13[اسم الطالب],Table1[[#This Row],[اسم الطالب]])","v":0}]
[null,524,null,null,{"$f":"COUNTIFS(Table13[حال الحضور],\"غائب\",Table13[اسم الطالب],Table1[[#This Row],[اسم الطالب]])","v":0}]
[null,525,null,null,{"$f":"COUNTIFS(Table13[حال الحضور],\"غائب\",Table13[اسم الطالب],Table1[[#This Row],[اسم الطالب]])","v":0}]
[null,526,null,null,{"$f":"COUNTIFS(Table13[حال الحضور],\"غائب\",Table13[اسم الطالب],Table1[[#This Row],[اسم الطالب]])","v":0}]
[null,{"$f":"ROW()-6","v":527},null,null,{"$f":"COUNTIFS(Table13[حال الحضور],\"غائب\",Table13[اسم الطالب],Table1[[#This Row],[اسم الطالب]])","v":0}]
[null,528,null,null,{"$f":"COUNTIFS(Table13[حال الحضور],\"غائب\",Table13[اسم الطالب],Table1[[#This Row],[اسم الطالب]])","v":0}]
[null,529,null,null,{"$f":"COUNTIFS(Table13[حال الحضور],\"غائب\",Table13[اسم الطالب],Table1[[#This Row],[اسم الطالب]])","v":0}]
[null,530,null,null,{"$f":"COUNTIFS(Table13[حال الحضور],\"غائب\",Table13[اسم الطالب],Table1[[#This Row],[اسم الطالب]])","v":0}]
[null,531,null,null,{"$f":"COUNTIFS(Table13[حال الحضور],\"غائب\",Table13[اسم الطالب],Table1[[#This Row],[اسم الطالب]])","v":0}]
[null,532,null,null,{"$f":"COUNTIFS(Table13[حال الحضور],\"غائب\",Table13[اسم الطالب],Table1[[#This Row],[اسم الطالب]])","v":0}]
[null,533,null,null,{"$f":"COUNTIFS(Table13[حال الحضور],\"غائب\",Table13[اسم الطالب],Table1[[#This Row],[اسم الطالب]])","v":0}]
[null,534,null,null,{"$f":"COUNTIFS(Table13[حال الحضور],\"غائب\",Table13[اسم الطالب],Table1[[#This Row],[اسم الطالب]])","v":0}]
[null,535,null,null,{"$f":"COUNTIFS(Table13[حال الحضور],\"غائب\",Table13[اسم الطالب],Table1[[#This Row],[اسم الطالب]])","v":0}]
[null,536,null,null,{"$f":"COUNTIFS(Table13[حال الحضور],\"غائب\",Table13[اسم الطالب],Table1[[#This Row],[اسم الطالب]])","v":0}]
[null,537,null,null,{"$f":"COUNTIFS(Table13[حال الحضور],\"غائب\",Table13[اسم الطالب],Table1[[#This Row],[اسم الطالب]])","v":0}]
[null,538,null,null,{"$f":"COUNTIFS(Table13[حال الحضور],\"غائب\",Table13[اسم الطالب],Table1[[#This Row],[اسم الطالب]])","v":0}]
[null,539,null,null,{"$f":"COUNTIFS(Table13[حال الحضور],\"غائب\",Table13[اسم الطالب],Table1[[#This Row],[اسم الطالب]])","v":0}]
[null,540,null,null,{"$f":"COUNTIFS(Table13[حال الحضور],\"غائب\",Table13[اسم الطالب],Table1[[#This Row],[اسم الطالب]])","v":0}]
[null,541,null,null,{"$f":"COUNTIFS(Table13[حال الحضور],\"غائب\",Table13[اسم الطالب],Table1[[#This Row],[اسم الطالب]])","v":0}]
[null,542,null,null,{"$f":"COUNTIFS(Table13[حال الحضور],\"غائب\",Table13[اسم الطالب],Table1[[#This Row],[اسم الطالب]])","v":0}]
[null,543,null,null,{"$f":"COUNTIFS(Table13[حال الحضور],\"غائب\",Table13[اسم الطالب],Table1[[#This Row],[اسم الطالب]])","v":0}]
[null,544,null,null,{"$f":"COUNTIFS(Table13[حال الحضور],\"غائب\",Table13[اسم الطالب],Table1[[#This Row],[اسم الطالب]])","v":0}]
[null,545,null,null,{"$f":"COUNTIFS(Table13[حال الحضور],\"غائب\",Table13[اسم الطالب],Table1[[#This Row],[اسم الطالب]])","v":0}]
[null,546,null,null,{"$f":"COUNTIFS(Table13[حال الحضور],\"غائب\",Table13[اسم الطالب],Table1[[#This Row],[اسم الطالب]])","v":0}]
[null,547,null,null,{"$f":"COUNTIFS(Table13[حال الحضور],\"غائب\",Table13[اسم الطالب],Table1[[#This Row],[اسم الطالب]])","v":0}]
[null,548,null,null,{"$f":"COUNTIFS(Table13[حال الحضور],\"غائب\",Table13[اسم الطالب],Table1[[#This Row],[اسم الطالب]])","v":0}]
[null,549,null,null,{"$f":"COUNTIFS(Table13[حال الحضور],\"غائب\",Table13[اسم الطالب],Table1[[#This Row],[اسم الطالب]])","v":0}]
[null,550,null,null,{"$f":"COUNTIFS(Table13[حال الحضور],\"غائب\",Table13[اسم الطالب],Table1[[#This Row],[اسم الطالب]])","v":0}]
[null,551,null,null,{"$f":"COUNTIFS(Table13[حال الحضور],\"غائب\",Table13[اسم الطالب],Table1[[#This Row],[اسم الطالب]])","v":0}]
[null,552,null,null,{"$f":"COUNTIFS(Table13[حال الحضور],\"غائب\",Table13[اسم الطالب],Table1[[#This Row],[اسم الطالب]])","v":0}]
[null,553,null,null,{"$f":"COUNTIFS(Table13[حال الحضور],\"غائب\",Table13[اسم الطالب],Table1[[#This Row],[اسم الطالب]])","v":0}]
[null,554,null,null,{"$f":"COUNTIFS(Table13[حال الحضور],\"غائب\",Table13[اسم الطالب],Table1[[#This Row],[اسم الطالب]])","v":0}]
[null,555,null,null,{"$f":"COUNTIFS(Table13[حال الحضور],\"غائب\",Table13[اسم الطالب],Table1[[#This Row],[اسم الطالب]])","v":0}]
[null,556,null,null,{"$f":"COUNTIFS(Table13[حال الحضور],\"غائب\",Table13[اسم الطالب],Table1[[#This Row],[اسم الطالب]])","v":0}]
[null,557,null,null,{"$f":"COUNTIFS(Table13[حال الحضور],\"غائب\",Table13[اسم الطالب],Table1[[#This Row],[اسم الطالب]])","v":0}]
[null,558,null,null,{"$f":"COUNTIFS(Table13[حال الحضور],\"غائب\",Table13[اسم الطالب],Table1[[#This Row],[اسم الطالب]])","v":0}]
[null,559,null,null,{"$f":"COUNTIFS(Table13[حال الحضور],\"غائب\",Table13[اسم الطالب],Table1[[#This Row],[اسم الطالب]])","v":0}]
[null,560,null,null,{"$f":"COUNTIFS(Table13[حال الحضور],\"غائب\",Table13[اسم الطالب],Table1[[#This Row],[اسم الطالب]])","v":0}]
[null,561,null,null,{"$f":"COUNTIFS(Table13[حال الحضور],\"غائب\",Table13[اسم الطالب],Table1[[#This Row],[اسم الطالب]])","v":0}]
[null,562,null,null,{"$f":"COUNTIFS(Table13[حال الحضور],\"غائب\",Table13[اسم الطالب],Table1[[#This Row],[اسم الطالب]])","v":0}]
[null,563,null,null,{"$f":"COUNTIFS(Table13[حال الحضور],\"غائب\",Table13[اسم الطالب],Table1[[#This Row],[اسم الطالب]])","v":0}]
[null,564,null,null,{"$f":"COUNTIFS(Table13[حال الحضور],\"غائب\",Table13[اسم الطالب],Table1[[#This Row],[اسم الطالب]])","v":0}]
[null,565,null,null,{"$f":"COUNTIFS(Table13[حال الحضور],\"غائب\",Table13[اسم الطالب],Table1[[#This Row],[اسم الطالب]])","v":0}]
[null,566,null,null,{"$f":"COUNTIFS(Table13[حال الحضور],\"غائب\",Table13[اسم الطالب],Table1[[#This Row],[اسم الطالب]])","v":0}]
[null,567,null,null,{"$f":"COUNTIFS(Table13[حال الحضور],\"غائب\",Table13[اسم الطالب],Table1[[#This Row],[اسم الطالب]])","v":0}]
[null,568,null,null,{"$f":"COUNTIFS(Table13[حال الحضور],\"غائب\",Table13[اسم الطالب],Table1[[#This Row],[اسم الطالب]])","v":0}]
[null,569,null,null,{"$f":"COUNTIFS(Table13[حال الحضور],\"غائب\",Table13[اسم الطالب],Table1[[#This Row],[اسم الطالب]])","v":0}]
[null,570,null,null,{"$f":"COUNTIFS(Table13[حال الحضور],\"غائب\",Table13[اسم الطالب],Table1[[#This Row],[اسم الطالب]])","v":0}]
[null,571,null,null,{"$f":"COUNTIFS(Table13[حال الحضور],\"غائب\",Table13[اسم الطالب],Table1[[#This Row],[اسم الطالب]])","v":0}]
[null,572,null,null,{"$f":"COUNTIFS(Table13[حال الحضور],\"غائب\",Table13[اسم الطالب],Table1[[#This Row],[اسم الطالب]])","v":0}]
[null,573,null,null,{"$f":"COUNTIFS(Table13[حال الحضور],\"غائب\",Table13[اسم الطالب],Table1[[#This Row],[اسم الطالب]])","v":0}]
[null,574,null,null,{"$f":"COUNTIFS(Table13[حال الحضور],\"غائب\",Table13[اسم الطالب],Table1[[#This Row],[اسم الطالب]])","v":0}]
[null,575,null,null,{"$f":"COUNTIFS(Table13[حال الحضور],\"غائب\",Table13[اسم الطالب],Table1[[#This Row],[اسم الطالب]])","v":0}]
[null,576,null,null,{"$f":"COUNTIFS(Table13[حال الحضور],\"غائب\",Table13[اسم الطالب],Table1[[#This Row],[اسم الطالب]])","v":0}]
[null,577,null,null,{"$f":"COUNTIFS(Table13[حال الحضور],\"غائب\",Table13[اسم الطالب],Table1[[#This Row],[اسم الطالب]])","v":0}]
[null,578,null,null,{"$f":"COUNTIFS(Table13[حال الحضور],\"غائب\",Table13[اسم الطالب],Table1[[#This Row],[اسم الطالب]])","v":0}]
[null,579,null,null,{"$f":"COUNTIFS(Table13[حال الحضور],\"غائب\",Table13[اسم الطالب],Table1[[#This Row],[اسم الطالب]])","v":0}]
[null,580,null,null,{"$f":"COUNTIFS(Table13[حال الحضور],\"غائب\",Table13[اسم الطالب],Table1[[#This Row],[اسم الطالب]])","v":0}]
[null,581,null,null,{"$f":"COUNTIFS(Table13[حال الحضور],\"غائب\",Table13[اسم الطالب],Table1[[#This Row],[اسم الطالب]])","v":0}]
[null,582,null,null,{"$f":"COUNTIFS(Table13[حال الحضور],\"غائب\",Table13[اسم الطالب],Table1[[#This Row],[اسم الطالب]])","v":0}]
[null,583,null,null,{"$f":"COUNTIFS(Table13[حال الحضور],\"غائب\",Table13[اسم الطالب],Table1[[#This Row],[اسم الطالب]])","v":0}]
[null,584,null,null,{"$f":"COUNTIFS(Table13[حال الحضور],\"غائب\",Table13[اسم الطالب],Table1[[#This Row],[اسم الطالب]])","v":0}]
[null,585,null,null,{"$f":"COUNTIFS(Table13[حال الحضور],\"غائب\",Table13[اسم الطالب],Table1[[#This Row],[اسم الطالب]])","v":0}]
[null,586,null,null,{"$f":"COUNTIFS(Table13[حال الحضور],\"غائب\",Table13[اسم الطالب],Table1[[#This Row],[اسم الطالب]])","v":0}]
[null,587,null,null,{"$f":"COUNTIFS(Table13[حال الحضور],\"غائب\",Table13[اسم الطالب],Table1[[#This Row],[اسم الطالب]])","v":0}]
[null,588,null,null,{"$f":"COUNTIFS(Table13[حال الحضور],\"غائب\",Table13[اسم الطالب],Table1[[#This Row],[اسم الطالب]])","v":0}]
[null,589,null,null,{"$f":"COUNTIFS(Table13[حال الحضور],\"غائب\",Table13[اسم الطالب],Table1[[#This Row],[اسم الطالب]])","v":0}]
[null,590,null,null,{"$f":"COUNTIFS(Table13[حال الحضور],\"غائب\",Table13[اسم الطالب],Table1[[#This Row],[اسم الطالب]])","v":0}]
[null,{"$f":"ROW()-6","v":591},null,null,{"$f":"COUNTIFS(Table13[حال الحضور],\"غائب\",Table13[اسم الطالب],Table1[[#This Row],[اسم الطالب]])","v":0}]
[null,592,null,null,{"$f":"COUNTIFS(Table13[حال الحضور],\"غائب\",Table13[اسم الطالب],Table1[[#This Row],[اسم الطالب]])","v":0}]
[null,593,null,null,{"$f":"COUNTIFS(Table13[حال الحضور],\"غائب\",Table13[اسم الطالب],Table1[[#This Row],[اسم الطالب]])","v":0}]
[null,594,null,null,{"$f":"COUNTIFS(Table13[حال الحضور],\"غائب\",Table13[اسم الطالب],Table1[[#This Row],[اسم الطالب]])","v":0}]
[null,595,null,null,{"$f":"COUNTIFS(Table13[حال الحضور],\"غائب\",Table13[اسم الطالب],Table1[[#This Row],[اسم الطالب]])","v":0}]
[null,596,null,null,{"$f":"COUNTIFS(Table13[حال الحضور],\"غائب\",Table13[اسم الطالب],Table1[[#This Row],[اسم الطالب]])","v":0}]
[null,597,null,null,{"$f":"COUNTIFS(Table13[حال الحضور],\"غائب\",Table13[اسم الطالب],Table1[[#This Row],[اسم الطالب]])","v":0}]
[null,598,null,null,{"$f":"COUNTIFS(Table13[حال الحضور],\"غائب\",Table13[اسم الطالب],Table1[[#This Row],[اسم الطالب]])","v":0}]
[null,599,null,null,{"$f":"COUNTIFS(Table13[حال الحضور],\"غائب\",Table13[اسم الطالب],Table1[[#This Row],[اسم الطالب]])","v":0}]
[null,600,null,null,{"$f":"COUNTIFS(Table13[حال الحضور],\"غائب\",Table13[اسم الطالب],Table1[[#This Row],[اسم الطالب]])","v":0}]
[null,601,null,null,{"$f":"COUNTIFS(Table13[حال الحضور],\"غائب\",Table13[اسم الطالب],Table1[[#This Row],[اسم الطالب]])","v":0}]
[null,602,null,null,{"$f":"COUNTIFS(Table13[حال الحضور],\"غائب\",Table13[اسم الطالب],Table1[[#This Row],[اسم الطالب]])","v":0}]
[null,603,null,null,{"$f":"COUNTIFS(Table13[حال الحضور],\"غائب\",Table13[اسم الطالب],Table1[[#This Row],[اسم الطالب]])","v":0}]
[null,604,null,null,{"$f":"COUNTIFS(Table13[حال الحضور],\"غائب\",Table13[اسم الطالب],Table1[[#This Row],[اسم الطالب]])","v":0}]
[null,605,null,null,{"$f":"COUNTIFS(Table13[حال الحضور],\"غائب\",Table13[اسم الطالب],Table1[[#This Row],[اسم الطالب]])","v":0}]
[null,606,null,null,{"$f":"COUNTIFS(Table13[حال الحضور],\"غائب\",Table13[اسم الطالب],Table1[[#This Row],[اسم الطالب]])","v":0}]
[null,607,null,null,{"$f":"COUNTIFS(Table13[حال الحضور],\"غائب\",Table13[اسم الطالب],Table1[[#This Row],[اسم الطالب]])","v":0}]
[null,608,null,null,{"$f":"COUNTIFS(Table13[حال الحضور],\"غائب\",Table13[اسم الطالب],Table1[[#This Row],[اسم الطالب]])","v":0}]
[null,609,null,null,{"$f":"COUNTIFS(Table13[حال الحضور],\"غائب\",Table13[اسم الطالب],Table1[[#This Row],[اسم الطالب]])","v":0}]
[null,610,null,null,{"$f":"COUNTIFS(Table13[حال الحضور],\"غائب\",Table13[اسم الطالب],Table1[[#This Row],[اسم الطالب]])","v":0}]
[null,611,null,null,{"$f":"COUNTIFS(Table13[حال الحضور],\"غائب\",Table13[اسم الطالب],Table1[[#This Row],[اسم الطالب]])","v":0}]
[null,612,null,null,{"$f":"COUNTIFS(Table13[حال الحضور],\"غائب\",Table13[اسم الطالب],Table1[[#This Row],[اسم الطالب]])","v":0}]
[null,613,null,null,{"$f":"COUNTIFS(Table13[حال الحضور],\"غائب\",Table13[اسم الطالب],Table1[[#This Row],[اسم الطالب]])","v":0}]
[null,614,null,null,{"$f":"COUNTIFS(Table13[حال الحضور],\"غائب\",Table13[اسم الطالب],Table1[[#This Row],[اسم الطالب]])","v":0}]
[null,615,null,null,{"$f":"COUNTIFS(Table13[حال الحضور],\"غائب\",Table13[اسم الطالب],Table1[[#This Row],[اسم الطالب]])","v":0}]
[null,616,null,null,{"$f":"COUNTIFS(Table13[حال الحضور],\"غائب\",Table13[اسم الطالب],Table1[[#This Row],[اسم الطالب]])","v":0}]
[null,617,null,null,{"$f":"COUNTIFS(Table13[حال الحضور],\"غائب\",Table13[اسم الطالب],Table1[[#This Row],[اسم الطالب]])","v":0}]
[null,618,null,null,{"$f":"COUNTIFS(Table13[حال الحضور],\"غائب\",Table13[اسم الطالب],Table1[[#This Row],[اسم الطالب]])","v":0}]
[null,619,null,null,{"$f":"COUNTIFS(Table13[حال الحضور],\"غائب\",Table13[اسم الطالب],Table1[[#This Row],[اسم الطالب]])","v":0}]
[null,620,null,null,{"$f":"COUNTIFS(Table13[حال الحضور],\"غائب\",Table13[اسم الطالب],Table1[[#This Row],[اسم الطالب]])","v":0}]
[null,621,null,null,{"$f":"COUNTIFS(Table13[حال الحضور],\"غائب\",Table13[اسم الطالب],Table1[[#This Row],[اسم الطالب]])","v":0}]
[null,622,null,null,{"$f":"COUNTIFS(Table13[حال الحضور],\"غائب\",Table13[اسم الطالب],Table1[[#This Row],[اسم الطالب]])","v":0}]
[null,623,null,null,{"$f":"COUNTIFS(Table13[حال الحضور],\"غائب\",Table13[اسم الطالب],Table1[[#This Row],[اسم الطالب]])","v":0}]
[null,624,null,null,{"$f":"COUNTIFS(Table13[حال الحضور],\"غائب\",Table13[اسم الطالب],Table1[[#This Row],[اسم الطالب]])","v":0}]
[null,625,null,null,{"$f":"COUNTIFS(Table13[حال الحضور],\"غائب\",Table13[اسم الطالب],Table1[[#This Row],[اسم الطالب]])","v":0}]
[null,626,null,null,{"$f":"COUNTIFS(Table13[حال الحضور],\"غائب\",Table13[اسم الطالب],Table1[[#This Row],[اسم الطالب]])","v":0}]
[null,627,null,null,{"$f":"COUNTIFS(Table13[حال الحضور],\"غائب\",Table13[اسم الطالب],Table1[[#This Row],[اسم الطالب]])","v":0}]
[null,628,null,null,{"$f":"COUNTIFS(Table13[حال الحضور],\"غائب\",Table13[اسم الطالب],Table1[[#This Row],[اسم الطالب]])","v":0}]
[null,629,null,null,{"$f":"COUNTIFS(Table13[حال الحضور],\"غائب\",Table13[اسم الطالب],Table1[[#This Row],[اسم الطالب]])","v":0}]
[null,630,null,null,{"$f":"COUNTIFS(Table13[حال الحضور],\"غائب\",Table13[اسم الطالب],Table1[[#This Row],[اسم الطالب]])","v":0}]
[null,631,null,null,{"$f":"COUNTIFS(Table13[حال الحضور],\"غائب\",Table13[اسم الطالب],Table1[[#This Row],[اسم الطالب]])","v":0}]
[null,632,null,null,{"$f":"COUNTIFS(Table13[حال الحضور],\"غائب\",Table13[اسم الطالب],Table1[[#This Row],[اسم الطالب]])","v":0}]
[null,633,null,null,{"$f":"COUNTIFS(Table13[حال الحضور],\"غائب\",Table13[اسم الطالب],Table1[[#This Row],[اسم الطالب]])","v":0}]
[null,634,null,null,{"$f":"COUNTIFS(Table13[حال الحضور],\"غائب\",Table13[اسم الطالب],Table1[[#This Row],[اسم الطالب]])","v":0}]
[null,635,null,null,{"$f":"COUNTIFS(Table13[حال الحضور],\"غائب\",Table13[اسم الطالب],Table1[[#This Row],[اسم الطالب]])","v":0}]
[null,636,null,null,{"$f":"COUNTIFS(Table13[حال الحضور],\"غائب\",Table13[اسم الطالب],Table1[[#This Row],[اسم الطالب]])","v":0}]
[null,637,null,null,{"$f":"COUNTIFS(Table13[حال الحضور],\"غائب\",Table13[اسم الطالب],Table1[[#This Row],[اسم الطالب]])","v":0}]
[null,638,null,null,{"$f":"COUNTIFS(Table13[حال الحضور],\"غائب\",Table13[اسم الطالب],Table1[[#This Row],[اسم الطالب]])","v":0}]
[null,639,null,null,{"$f":"COUNTIFS(Table13[حال الحضور],\"غائب\",Table13[اسم الطالب],Table1[[#This Row],[اسم الطالب]])","v":0}]
[null,640,null,null,{"$f":"COUNTIFS(Table13[حال الحضور],\"غائب\",Table13[اسم الطالب],Table1[[#This Row],[اسم الطالب]])","v":0}]
[null,641,null,null,{"$f":"COUNTIFS(Table13[حال الحضور],\"غائب\",Table13[اسم الطالب],Table1[[#This Row],[اسم الطالب]])","v":0}]
[null,642,null,null,{"$f":"COUNTIFS(Table13[حال الحضور],\"غائب\",Table13[اسم الطالب],Table1[[#This Row],[اسم الطالب]])","v":0}]
[null,643,null,null,{"$f":"COUNTIFS(Table13[حال الحضور],\"غائب\",Table13[اسم الطالب],Table1[[#This Row],[اسم الطالب]])","v":0}]
[null,644,null,null,{"$f":"COUNTIFS(Table13[حال الحضور],\"غائب\",Table13[اسم الطالب],Table1[[#This Row],[اسم الطالب]])","v":0}]
[null,645,null,null,{"$f":"COUNTIFS(Table13[حال الحضور],\"غائب\",Table13[اسم الطالب],Table1[[#This Row],[اسم الطالب]])","v":0}]
[null,646,null,null,{"$f":"COUNTIFS(Table13[حال الحضور],\"غائب\",Table13[اسم الطالب],Table1[[#This Row],[اسم الطالب]])","v":0}]
[null,647,null,null,{"$f":"COUNTIFS(Table13[حال الحضور],\"غائب\",Table13[اسم الطالب],Table1[[#This Row],[اسم الطالب]])","v":0}]
[null,648,null,null,{"$f":"COUNTIFS(Table13[حال الحضور],\"غائب\",Table13[اسم الطالب],Table1[[#This Row],[اسم الطالب]])","v":0}]
[null,649,null,null,{"$f":"COUNTIFS(Table13[حال الحضور],\"غائب\",Table13[اسم الطالب],Table1[[#This Row],[اسم الطالب]])","v":0}]
[null,650,null,null,{"$f":"COUNTIFS(Table13[حال الحضور],\"غائب\",Table13[اسم الطالب],Table1[[#This Row],[اسم الطالب]])","v":0}]
[null,651,null,null,{"$f":"COUNTIFS(Table13[حال الحضور],\"غائب\",Table13[اسم الطالب],Table1[[#This Row],[اسم الطالب]])","v":0}]
[null,652,null,null,{"$f":"COUNTIFS(Table13[حال الحضور],\"غائب\",Table13[اسم الطالب],Table1[[#This Row],[اسم الطالب]])","v":0}]
[null,653,null,null,{"$f":"COUNTIFS(Table13[حال الحضور],\"غائب\",Table13[اسم الطالب],Table1[[#This Row],[اسم الطالب]])","v":0}]
[null,654,null,null,{"$f":"COUNTIFS(Table13[حال الحضور],\"غائب\",Table13[اسم الطالب],Table1[[#This Row],[اسم الطالب]])","v":0}]
[null,{"$f":"ROW()-6","v":655},null,null,{"$f":"COUNTIFS(Table13[حال الحضور],\"غائب\",Table13[اسم الطالب],Table1[[#This Row],[اسم الطالب]])","v":0}]
[null,656,null,null,{"$f":"COUNTIFS(Table13[حال الحضور],\"غائب\",Table13[اسم الطالب],Table1[[#This Row],[اسم الطالب]])","v":0}]
[null,657,null,null,{"$f":"COUNTIFS(Table13[حال الحضور],\"غائب\",Table13[اسم الطالب],Table1[[#This Row],[اسم الطالب]])","v":0}]
[null,658,null,null,{"$f":"COUNTIFS(Table13[حال الحضور],\"غائب\",Table13[اسم الطالب],Table1[[#This Row],[اسم الطالب]])","v":0}]
[null,659,null,null,{"$f":"COUNTIFS(Table13[حال الحضور],\"غائب\",Table13[اسم الطالب],Table1[[#This Row],[اسم الطالب]])","v":0}]
[null,660,null,null,{"$f":"COUNTIFS(Table13[حال الحضور],\"غائب\",Table13[اسم الطالب],Table1[[#This Row],[اسم الطالب]])","v":0}]
[null,661,null,null,{"$f":"COUNTIFS(Table13[حال الحضور],\"غائب\",Table13[اسم الطالب],Table1[[#This Row],[اسم الطالب]])","v":0}]
[null,662,null,null,{"$f":"COUNTIFS(Table13[حال الحضور],\"غائب\",Table13[اسم الطالب],Table1[[#This Row],[اسم الطالب]])","v":0}]
[null,663,null,null,{"$f":"COUNTIFS(Table13[حال الحضور],\"غائب\",Table13[اسم الطالب],Table1[[#This Row],[اسم الطالب]])","v":0}]
[null,664,null,null,{"$f":"COUNTIFS(Table13[حال الحضور],\"غائب\",Table13[اسم الطالب],Table1[[#This Row],[اسم الطالب]])","v":0}]
[null,665,null,null,{"$f":"COUNTIFS(Table13[حال الحضور],\"غائب\",Table13[اسم الطالب],Table1[[#This Row],[اسم الطالب]])","v":0}]
[null,666,null,null,{"$f":"COUNTIFS(Table13[حال الحضور],\"غائب\",Table13[اسم الطالب],Table1[[#This Row],[اسم الطالب]])","v":0}]
[null,667,null,null,{"$f":"COUNTIFS(Table13[حال الحضور],\"غائب\",Table13[اسم الطالب],Table1[[#This Row],[اسم الطالب]])","v":0}]
[null,668,null,null,{"$f":"COUNTIFS(Table13[حال الحضور],\"غائب\",Table13[اسم الطالب],Table1[[#This Row],[اسم الطالب]])","v":0}]
[null,669,null,null,{"$f":"COUNTIFS(Table13[حال الحضور],\"غائب\",Table13[اسم الطالب],Table1[[#This Row],[اسم الطالب]])","v":0}]
[null,670,null,null,{"$f":"COUNTIFS(Table13[حال الحضور],\"غائب\",Table13[اسم الطالب],Table1[[#This Row],[اسم الطالب]])","v":0}]
[null,671,null,null,{"$f":"COUNTIFS(Table13[حال الحضور],\"غائب\",Table13[اسم الطالب],Table1[[#This Row],[اسم الطالب]])","v":0}]
[null,672,null,null,{"$f":"COUNTIFS(Table13[حال الحضور],\"غائب\",Table13[اسم الطالب],Table1[[#This Row],[اسم الطالب]])","v":0}]
[null,673,null,null,{"$f":"COUNTIFS(Table13[حال الحضور],\"غائب\",Table13[اسم الطالب],Table1[[#This Row],[اسم الطالب]])","v":0}]
[null,674,null,null,{"$f":"COUNTIFS(Table13[حال الحضور],\"غائب\",Table13[اسم الطالب],Table1[[#This Row],[اسم الطالب]])","v":0}]
[null,675,null,null,{"$f":"COUNTIFS(Table13[حال الحضور],\"غائب\",Table13[اسم الطالب],Table1[[#This Row],[اسم الطالب]])","v":0}]
[null,676,null,null,{"$f":"COUNTIFS(Table13[حال الحضور],\"غائب\",Table13[اسم الطالب],Table1[[#This Row],[اسم الطالب]])","v":0}]
[null,677,null,null,{"$f":"COUNTIFS(Table13[حال الحضور],\"غائب\",Table13[اسم الطالب],Table1[[#This Row],[اسم الطالب]])","v":0}]
[null,678,null,null,{"$f":"COUNTIFS(Table13[حال الحضور],\"غائب\",Table13[اسم الطالب],Table1[[#This Row],[اسم الطالب]])","v":0}]
[null,679,null,null,{"$f":"COUNTIFS(Table13[حال الحضور],\"غائب\",Table13[اسم الطالب],Table1[[#This Row],[اسم الطالب]])","v":0}]
[null,680,null,null,{"$f":"COUNTIFS(Table13[حال الحضور],\"غائب\",Table13[اسم الطالب],Table1[[#This Row],[اسم الطالب]])","v":0}]
[null,681,null,null,{"$f":"COUNTIFS(Table13[حال الحضور],\"غائب\",Table13[اسم الطالب],Table1[[#This Row],[اسم الطالب]])","v":0}]
[null,682,null,null,{"$f":"COUNTIFS(Table13[حال الحضور],\"غائب\",Table13[اسم الطالب],Table1[[#This Row],[اسم الطالب]])","v":0}]
[null,683,null,null,{"$f":"COUNTIFS(Table13[حال الحضور],\"غائب\",Table13[اسم الطالب],Table1[[#This Row],[اسم الطالب]])","v":0}]
[null,684,null,null,{"$f":"COUNTIFS(Table13[حال الحضور],\"غائب\",Table13[اسم الطالب],Table1[[#This Row],[اسم الطالب]])","v":0}]
[null,685,null,null,{"$f":"COUNTIFS(Table13[حال الحضور],\"غائب\",Table13[اسم الطالب],Table1[[#This Row],[اسم الطالب]])","v":0}]
[null,686,null,null,{"$f":"COUNTIFS(Table13[حال الحضور],\"غائب\",Table13[اسم الطالب],Table1[[#This Row],[اسم الطالب]])","v":0}]
[null,687,null,null,{"$f":"COUNTIFS(Table13[حال الحضور],\"غائب\",Table13[اسم الطالب],Table1[[#This Row],[اسم الطالب]])","v":0}]
[null,688,null,null,{"$f":"COUNTIFS(Table13[حال الحضور],\"غائب\",Table13[اسم الطالب],Table1[[#This Row],[اسم الطالب]])","v":0}]
[null,689,null,null,{"$f":"COUNTIFS(Table13[حال الحضور],\"غائب\",Table13[اسم الطالب],Table1[[#This Row],[اسم الطالب]])","v":0}]
[null,690,null,null,{"$f":"COUNTIFS(Table13[حال الحضور],\"غائب\",Table13[اسم الطالب],Table1[[#This Row],[اسم الطالب]])","v":0}]
[null,691,null,null,{"$f":"COUNTIFS(Table13[حال الحضور],\"غائب\",Table13[اسم الطالب],Table1[[#This Row],[اسم الطالب]])","v":0}]
[null,692,null,null,{"$f":"COUNTIFS(Table13[حال الحضور],\"غائب\",Table13[اسم الطالب],Table1[[#This Row],[اسم الطالب]])","v":0}]
[null,693,null,null,{"$f":"COUNTIFS(Table13[حال الحضور],\"غائب\",Table13[اسم الطالب],Table1[[#This Row],[اسم الطالب]])","v":0}]
[null,694,null,null,{"$f":"COUNTIFS(Table13[حال الحضور],\"غائب\",Table13[اسم الطالب],Table1[[#This Row],[اسم الطالب]])","v":0}]
[null,695,null,null,{"$f":"COUNTIFS(Table13[حال الحضور],\"غائب\",Table13[اسم الطالب],Table1[[#This Row],[اسم الطالب]])","v":0}]
[null,696,null,null,{"$f":"COUNTIFS(Table13[حال الحضور],\"غائب\",Table13[اسم الطالب],Table1[[#This Row],[اسم الطالب]])","v":0}]
[null,697,null,null,{"$f":"COUNTIFS(Table13[حال الحضور],\"غائب\",Table13[اسم الطالب],Table1[[#This Row],[اسم الطالب]])","v":0}]
[null,698,null,null,{"$f":"COUNTIFS(Table13[حال الحضور],\"غائب\",Table13[اسم الطالب],Table1[[#This Row],[اسم الطالب]])","v":0}]
[null,699,null,null,{"$f":"COUNTIFS(Table13[حال الحضور],\"غائب\",Table13[اسم الطالب],Table1[[#This Row],[اسم الطالب]])","v":0}]
[null,700,null,null,{"$f":"COUNTIFS(Table13[حال الحضور],\"غائب\",Table13[اسم الطالب],Table1[[#This Row],[اسم الطالب]])","v":0}]
[null,701,null,null,{"$f":"COUNTIFS(Table13[حال الحضور],\"غائب\",Table13[اسم الطالب],Table1[[#This Row],[اسم الطالب]])","v":0}]
[null,702,null,null,{"$f":"COUNTIFS(Table13[حال الحضور],\"غائب\",Table13[اسم الطالب],Table1[[#This Row],[اسم الطالب]])","v":0}]
[null,703,null,null,{"$f":"COUNTIFS(Table13[حال الحضور],\"غائب\",Table13[اسم الطالب],Table1[[#This Row],[اسم الطالب]])","v":0}]
[null,704,null,null,{"$f":"COUNTIFS(Table13[حال الحضور],\"غائب\",Table13[اسم الطالب],Table1[[#This Row],[اسم الطالب]])","v":0}]
[null,705,null,null,{"$f":"COUNTIFS(Table13[حال الحضور],\"غائب\",Table13[اسم الطالب],Table1[[#This Row],[اسم الطالب]])","v":0}]
[null,706,null,null,{"$f":"COUNTIFS(Table13[حال الحضور],\"غائب\",Table13[اسم الطالب],Table1[[#This Row],[اسم الطالب]])","v":0}]
[null,707,null,null,{"$f":"COUNTIFS(Table13[حال الحضور],\"غائب\",Table13[اسم الطالب],Table1[[#This Row],[اسم الطالب]])","v":0}]
[null,708,null,null,{"$f":"COUNTIFS(Table13[حال الحضور],\"غائب\",Table13[اسم الطالب],Table1[[#This Row],[اسم الطالب]])","v":0}]
[null,709,null,null,{"$f":"COUNTIFS(Table13[حال الحضور],\"غائب\",Table13[اسم الطالب],Table1[[#This Row],[اسم الطالب]])","v":0}]
[null,710,null,null,{"$f":"COUNTIFS(Table13[حال الحضور],\"غائب\",Table13[اسم الطالب],Table1[[#This Row],[اسم الطالب]])","v":0}]
[null,711,null,null,{"$f":"COUNTIFS(Table13[حال الحضور],\"غائب\",Table13[اسم الطالب],Table1[[#This Row],[اسم الطالب]])","v":0}]
[null,712,null,null,{"$f":"COUNTIFS(Table13[حال الحضور],\"غائب\",Table13[اسم الطالب],Table1[[#This Row],[اسم الطالب]])","v":0}]
[null,713,null,null,{"$f":"COUNTIFS(Table13[حال الحضور],\"غائب\",Table13[اسم الطالب],Table1[[#This Row],[اسم الطالب]])","v":0}]
[null,714,null,null,{"$f":"COUNTIFS(Table13[حال الحضور],\"غائب\",Table13[اسم الطالب],Table1[[#This Row],[اسم الطالب]])","v":0}]

{"sheet":"Database","index":6,"n_rows":10,"n_cols":10,"rows_kept":10,"cut":false,"hidden":false,"merged":[]}
[]
[]
[]
[null,{"$f":"IF(A4<>\"\",\"حاضر\",\"\")","v":""}]
[]
[null,"#","اسم الطالب","الشعبة","حال الحضور","التاريخ","الصف","اسم المدرسة","السنة","الشهر"]
[null,1]
[null,2,"محمد1","7\\1","غائب","2023-10-31","سابع",null,2023,10]
[null,3,"محمد1","7\\1","غائب","2023-10-31","سابع",null,2023,10]
[null,4,"محمد1","7\\1","غائب","2023-10-31","سابع",null,2023,10]

{"sheet":"إحصائية يومية","index":7,"n_rows":6,"n_cols":3,"rows_kept":6,"cut":false,"hidden":false,"merged":[[0,0,0,22]]}
["إحصائية الغياب اليومي"]
["  ","     "]
["التاريخ","عدد الغياب","(blank)"]
["(blank)"]
["2023-10-31",3]
["مجموع الغياب",3]

{"sheet":"التقرير الشامل","index":8,"n_rows":6,"n_cols":6,"rows_kept":6,"cut":false,"hidden":false,"merged":[]}
["التقرير الشامل "]
["   ",null,null,"حال الحضور"]
["السنة","الشهر","التاريخ","غائب","(blank)","المجموع "]
[2023,10,"2023-10-31",3,null,3]
["(blank)","(blank)","(blank)"]
["المجموع ",null,null,3,null,3]

{"sheet":"Setting","index":9,"n_rows":133,"n_cols":15,"rows_kept":133,"cut":false,"hidden":false,"merged":[[2,3,2,13]]}
[null,null,null,"أغسطس","سبتمبر","أكتوبر","نوفمبر","ديسمبر","يناير","فبراير","مارس","أبريل","مايو","يونيو"]
["أدخل أيام العمل وأيام الإجازات الرسمية:",null,null,"2023-08-01","2023-09-01","2023-10-01","2023-11-01","2023-12-01","2024-01-01","2024-02-01","2024-03-01","2024-04-01","2024-05-01","2024-06-01"]
["اسم الإجازة","التاريخ",null,"عدد أيام الشهر من غير جمعة وسبت ومن غير الإجازات الرسمية"]
["إجازة الصيف","2023-08-01",null,{"$f":"COUNTA(D5:D27)-COUNTBLANK(D5:D27)","v":5},{"$f":"COUNTA(E5:E27)-COUNTBLANK(E5:E27)","v":20},{"$f":"COUNTA(F5:F27)-COUNTBLANK(F5:F27)","v":18},22,14,18,20,21,22,22,{"$f":"COUNTA(N5:N27)-COUNTBLANK(N5:N27)","v":8},{"$f":"SUM(D4:N4)","v":190}]
["إجازة الصيف","2023-08-02",null,{"$f":"IF(WORKDAY.INTL($D$2-1,ROW(A1),\"0000110\",$B$4:$B$129)>EOMONTH($D$2,0),\"\",WORKDAY.INTL($D$2-1,ROW(A1),\"0000110\",$B$4:$B$129))","v":"2023-08-27"},{"$f":"IF(WORKDAY.INTL($E$2-1,ROW(A1),\"0000110\",$B$4:$B$129)>EOMONTH($E$2,0),\"\",WORKDAY.INTL($E$2-1,ROW(A1),\"0000110\",$B$4:$B$129))","v":"2023-09-03"},{"$f":"IF(WORKDAY.INTL($F$2-1,ROW(A1),\"0000110\",$B$4:$B$129)>EOMONTH($F$2,0),\"\",WORKDAY.INTL($F$2-1,ROW(A1),\"0000110\",$B$4:$B$129))","v":"2023-10-01"},{"$f":"IF(WORKDAY.INTL($G$2-1,ROW(A1),\"0000110\",$B$4:$B$129)>EOMONTH($G$2,0),\"\",WORKDAY.INTL($G$2-1,ROW(A1),\"0000110\",$B$4:$B$129))","v":"2023-11-01"},{"$f":"IF(WORKDAY.INTL($H$2-1,ROW(A1),\"0000110\",$B$4:$B$129)>EOMONTH($H$2,0),\"\",WORKDAY.INTL($H$2-1,ROW(A1),\"0000110\",$B$4:$B$129))","v":"2023-12-03"},{"$f":"IF(WORKDAY.INTL($I$2-1,ROW(A1),\"0000110\",$B$4:$B$129)>EOMONTH($I$2,0),\"\",WORKDAY.INTL($I$2-1,ROW(A1),\"0000110\",$B$4:$B$129))","v":"2024-01-08"},{"$f":"IF(WORKDAY.INTL($J$2-1,ROW(A1),\"0000110\",$B$4:$B$129)>EOMONTH($J$2,0),\"\",WORKDAY.INTL($J$2-1,ROW(A1),\"0000110\",$B$4:$B$129))","v":"2024-02-01"},{"$f":"IF(WORKDAY.INTL($K$2-1,ROW(A1),\"0000110\",$B$4:$B$129)>EOMONTH($K$2,0),\"\",WORKDAY.INTL($K$2-1,ROW(A1),\"0000110\",$B$4:$B$129))","v":"2024-03-03"},{"$f":"IF(WORKDAY.INTL($L$2-1,ROW(A1),\"0000110\",$B$4:$B$129)>EOMONTH($L$2,0),\"\",WORKDAY.INTL($L$2-1,ROW(A1),\"0000110\",$B$4:$B$129))","v":"2024-04-01"},{"$f":"IF(WORKDAY.INTL($M$2-1,ROW(A1),\"0000110\",$B$4:$B$129)>EOMONTH($M$2,0),\"\",WORKDAY.INTL($M$2-1,ROW(A1),\"0000110\",$B$4:$B$129))","v":"2024-05-01"},{"$f":"IF(WORKDAY.INTL($N$2-1,ROW(A1),\"0000110\",$B$4:$B$129)>EOMONTH($N$2,0),\"\",WORKDAY.INTL($N$2-1,ROW(A1),\"0000110\",$B$4:$B$129))","v":"2024-06-02"}]
["إجازة الصيف","2023-08-03",null,"2023-08-28","2023-09-04","2023-10-02","2023-11-02","2023-12-04","2024-01-09","2024-02-04","2024-03-04","2024-04-02","2024-05-02","2024-06-03"]
["إجازة الصيف","2023-08-04",null,"2023-08-29","2023-09-05","2023-10-03","2023-11-05","2023-12-05","2024-01-10","2024-02-05","2024-03-05","2024-04-03","2024-05-05","2024-06-04"]
["إجازة الصيف","2023-08-05",null,"2023-08-30","2023-09-06","2023-10-04","2023-11-06","2023-12-06","2024-01-11","2024-02-06","2024-03-06","2024-04-04","2024-05-06","2024-06-05"]
["إجازة الصيف","2023-08-06",null,"2023-08-31","2023-09-07","2023-10-05","2023-11-07","2023-12-07","2024-01-14","2024-02-07","2024-03-07","2024-04-07","2024-05-07","2024-06-06"]
["إجازة الصيف","2023-08-07",null,"","2023-09-10","2023-10-08","2023-11-08","2023-12-10","2024-01-15","2024-02-08","2024-03-10","2024-04-08","2024-05-08","2024-06-09"]
["إجازة الصيف","2023-08-08",null,"","2023-09-11","2023-10-09","2023-11-09","2023-12-11","2024-01-16","2024-02-11","2024-03-11","2024-04-09","2024-05-09","2024-06-10"]
["إجازة الصيف","2023-08-09",null,"","2023-09-12","2023-10-10","2023-11-12","2023-12-12","2024-01-17","2024-02-12","2024-03-12","2024-04-10","2024-05-12","2024-06-11"]
["إجازة الصيف","2023-08-10",null,"","2023-09-13","2023-10-11","2023-11-13","2023-12-13","2024-01-18","2024-02-13","2024-03-13","2024-04-11","2024-05-13",""]
["إجازة الصيف","2023-08-11",null,"","2023-09-14","2023-10-12","2023-11-14","2023-12-14","2024-01-21","2024-02-15","2024-03-14","2024-04-14","2024-05-14",""]
["إجازة الصيف","2023-08-12",null,"","2023-09-17","2023-10-15","2023-11-15","2023-12-17","2024-01-22","2024-02-18","2024-03-17","2024-04-15","2024-05-15",""]
["إجازة الصيف","2023-08-13",null,"","2023-09-18","2023-10-16","2023-11-16","2023-12-19","2024-01-23","2024-02-19","2024-03-18","2024-04-16","2024-05-16",""]
["إجازة الصيف","2023-08-14",null,"","2023-09-19","2023-10-17","2023-11-19","2023-12-20","2024-01-24","2024-02-20","2024-03-19","2024-04-17","2024-05-19",""]
["إجازة الصيف","2023-08-15",null,"","2023-09-20","2023-10-18","2023-11-20","2023-12-21","2024-01-25","2024-02-21","2024-03-20","2024-04-18","2024-05-20",""]
["إجازة الصيف","2023-08-16",null,"","2023-09-21","2023-10-19","2023-11-21","","2024-01-28","2024-02-22","2024-03-21","2024-04-21","2024-05-21",""]
["إجازة الصيف","2023-08-17",null,"","2023-09-24","2023-10-29","2023-11-22","","2024-01-29","2024-02-25","2024-03-24","2024-04-22","2024-05-22",""]
["إجازة الصيف","2023-08-18",null,"","2023-09-25","2023-10-30","2023-11-23","","2024-01-30","2024-02-26","2024-03-25","2024-04-23","2024-05-23",""]
["إجازة الصيف","2023-08-19",null,"","2023-09-26","2023-10-31","2023-11-26","","2024-01-31","2024-02-27","2024-03-26","2024-04-24","2024-05-26",""]
["إجازة الصيف","2023-08-20",null,"","2023-09-27","","2023-11-27","","","2024-02-28","2024-03-27","2024-04-25","2024-05-27",""]
["إجازة الصيف","2023-08-21",null,"","2023-09-28","","2023-11-28","","","2024-02-29","2024-03-28","2024-04-28","2024-05-28",""]
["إجازة الصيف","2023-08-22",null,"","","","2023-11-29","","","","2024-03-31","2024-04-29","2024-05-29",""]
["إجازة الصيف","2023-08-23",null,"","","","2023-11-30","","","","","2024-04-30","2024-05-30",""]
["إجازة الصيف","2023-08-24",null,"","","","","","","","","","",""]
["إجازة الصيف","2023-08-25",null,"","","","","","","","","","",""]
["نهاية الإجازة الصيفية","2023-08-26",null,"","","","","","","","","","",""]
["إجازة منتصف الفصل الأول","2023-10-22"]
["إجازة منتصف الفصل الأول","2023-10-23"]
["إجازة منتصف الفصل الأول","2023-10-24"]
["إجازة منتصف الفصل الأول","2023-10-25"]
["إجازة منتصف الفصل الأول","2023-10-26"]
["إجازة منتصف الفصل الأول","2023-10-27"]
["نهاية الإجازة","2023-10-28"]
["اليوم الوطني","2023-12-18"]
["إجازة منتصف العام الأكاديمي","2023-12-24"]
["إجازة منتصف العام الأكاديمي","2023-12-25"]
["إجازة منتصف العام الأكاديمي","2023-12-26"]
["إجازة منتصف العام الأكاديمي","2023-12-27"]
["إجازة منتصف العام الأكاديمي","2023-12-28"]
["إجازة منتصف العام الأكاديمي","2023-12-29"]
["إجازة منتصف العام الأكاديمي","2023-12-30"]
["إجازة منتصف العام الأكاديمي","2023-12-31"]
["إجازة منتصف العام الأكاديمي","2024-01-01"]
["إجازة منتصف العام الأكاديمي","2024-01-02"]
["إجازة منتصف العام الأكاديمي","2024-01-03"]
["إجازة منتصف العام الأكاديمي","2024-01-04"]
["إجازة منتصف العام الأكاديمي","2024-01-05"]
["نهاية إجازة المنتصف","2024-01-07"]
["اليوم الرياضي","2024-02-14"]
["إجازة الطلاب","2024-06-12"]
["إجازة الطلاب","2024-06-13"]
["إجازة الطلاب","2024-06-14"]
["إجازة الطلاب","2024-06-15"]
["إجازة الطلاب","2024-06-16"]
["إجازة الطلاب","2024-06-17"]
["إجازة الطلاب","2024-06-18"]
["إجازة الطلاب","2024-06-19"]
["إجازة الطلاب","2024-06-20"]
["إجازة الطلاب","2024-06-21"]
["إجازة الطلاب","2024-06-22"]
["إجازة الطلاب","2024-06-23"]
["إجازة الطلاب","2024-06-24"]
["إجازة الطلاب","2024-06-25"]
["إجازة الطلاب","2024-06-26"]
["إجازة الطلاب","2024-06-27"]
["إجازة الطلاب","2024-06-28"]
["إجازة الطلاب","2024-06-29"]
["إجازة الموظفين","2024-06-30"]
["الإجازة الصيفية","2024-07-01"]
["الإجازة الصيفية","2024-07-02"]
["الإجازة الصيفية","2024-07-03"]
["الإجازة الصيفية","2024-07-04"]
["الإجازة الصيفية","2024-07-05"]
["الإجازة الصيفية","2024-07-06"]
["الإجازة الصيفية","2024-07-07"]
["الإجازة الصيفية","2024-07-08"]
["الإجازة الصيفية","2024-07-09"]
["الإجازة الصيفية","2024-07-10"]
["الإجازة الصيفية","2024-07-11"]
["الإجازة الصيفية","2024-07-12"]
["الإجازة الصيفية","2024-07-13"]
["الإجازة الصيفية","2024-07-14"]
["الإجازة الصيفية","2024-07-15"]
["الإجازة الصيفية","2024-07-16"]
["الإجازة الصيفية","2024-07-17"]
["الإجازة الصيفية","2024-07-18"]
["الإجازة الصيفية","2024-07-19"]
["الإجازة الصيفية","2024-07-20"]
["الإجازة الصيفية","2024-07-21"]
["الإجازة الصيفية","2024-07-22"]
["الإجازة الصيفية","2024-07-23"]
["الإجازة الصيفية","2024-07-24"]
["الإجازة الصيفية","2024-07-25"]
["الإجازة الصيفية","2024-07-26"]
["الإجازة الصيفية","2024-07-27"]
["الإجازة الصيفية","2024-07-28"]
["الإجازة الصيفية","2024-07-29"]
["الإجازة الصيفية","2024-07-30"]
["الإجازة الصيفية","2024-07-31"]
["الإجازة الصيفية","2024-08-01"]
["الإجازة الصيفية","2024-08-02"]
["الإجازة الصيفية","2024-08-03"]
["الإجازة الصيفية","2024-08-04"]
["الإجازة الصيفية","2024-08-05"]
["الإجازة الصيفية","2024-08-06"]
["الإجازة الصيفية","2024-08-07"]
["الإجازة الصيفية","2024-08-08"]
["الإجازة الصيفية","2024-08-09"]
["الإجازة الصيفية","2024-08-10"]
["الإجازة الصيفية","2024-08-11"]
["الإجازة الصيفية","2024-08-12"]
["الإجازة الصيفية","2024-08-13"]
["الإجازة الصيفية","2024-08-14"]
["الإجازة الصيفية","2024-08-15"]
["الإجازة الصيفية","2024-08-16"]
["الإجازة الصيفية","2024-08-17"]
["الإجازة الصيفية","2024-08-18"]
["الإجازة الصيفية","2024-08-19"]
["الإجازة الصيفية","2024-08-20"]
["الإجازة الصيفية","2024-08-21"]
["الإجازة الصيفية","2024-08-22"]
["الإجازة الصيفية","2024-08-23"]
["الإجازة الصيفية","2024-08-24"]
["الإجازة الصيفية","2024-08-25"]
["الإجازة الصيفية","2024-08-26"]
["الإجازة الصيفية","2024-08-27"]
["الإجازة الصيفية","2024-08-28"]
["الإجازة الصيفية","2024-08-29"]
["الإجازة الصيفية","2024-08-30"]
["نهاية إجازة الصيف للطلاب","2024-08-31"]

{"sheet":"Sheet4","index":10,"n_rows":28,"n_cols":2,"rows_kept":28,"cut":false,"hidden":false,"merged":[]}
[]
[]
["اكتب الصف والشعبة:"]
["7\\1","سابع"]
["7\\2","سابع"]
["7\\3","سابع"]
["7\\4","سابع"]
["7\\5","سابع"]
["7\\6","سابع"]
["7\\7","سابع"]
["7\\8","سابع"]
["7\\9","سابع"]
["7\\10","سابع"]
["8\\1","ثامن"]
["8\\2","ثامن"]
["8\\3","ثامن"]
["8\\4","ثامن"]
["8\\5","ثامن"]
["8\\6","ثامن"]
["8\\7","ثامن"]
["8\\8","ثامن"]
["9\\1","تاسع"]
["9\\2","تاسع"]
["9\\3","تاسع"]
["9\\4","تاسع"]
["9\\5","تاسع"]
["9\\6","تاسع"]
["9\\7","تاسع"]